Workbook

Sheet gagacubiz
A1: larg = | B1: 60
A2: ecr = | B2: 4096 | C2: nb col | E2: 3 | F2: 4 | G2: =F2+1 -> 5 | H2: 6 | I2: 7 | J2: 8 | K2: 9 | L2: 10 | M2: 11 | N2: 12 | O2: 13 | P2: 14 | Q2: 15 | R2: 16 | S2: 17 | T2: 18 | U2: 19 | V2: 23
A3: h | B3: =INT(B2/B1) -> 68 | C3: larg col | E3: =$B1/E2 -> 20 | F3: 15 | G3: 12 | H3: 10 | I3: 8.571428571 | J3: 7.5 | K3: 6.666666667 | L3: 6 | M3: 5.454545455 | N3: 5 | O3: 4.615384615 | P3: 4.285714286 | Q3: 4 | R3: 3.75 | S3: 3.529411765 | T3: 3.333333333 | U3: 3.157894737 | V3: 2.608695652
A4: reste | B4: =B2-B1*B3 -> 16 | C4: en nb de col | E4: =$B4/E3 -> 0.8 | F4: 1.066666667 | G4: 1.333333333 | H4: 1.6 | I4: 1.866666667 | J4: 2.133333333 | K4: 2.4 | L4: 2.666666667 | M4: 2.933333333 | N4: 3.2 | O4: 3.466666667 | P4: 3.733333333 | Q4: 4 | R4: 4.266666667 | S4: 4.533333333 | T4: 4.8 | U4: 5.066666667 | V4: 6.133333333
A5: manque | B5: =B1-B4 -> 44 | C5: en nb de col | E5: =$B5/E3 -> 2.2 | F5: 2.933333333 | G5: 3.666666667 | H5: 4.4 | I5: 5.133333333 | J5: 5.866666667 | K5: 6.6 | L5: 7.333333333 | M5: 8.066666667 | N5: 8.8 | O5: 9.533333333 | P5: 10.26666667 | Q5: 11 | R5: 11.73333333 | S5: 12.46666667 | T5: 13.2 | U5: 13.93333333 | V5: =$B5/V3 -> 16.86666667
C6: ent(col) reste | E6: =INT(E4+0.49) -> 1 | F6: 1 | G6: 1 | H6: 2 | I6: 2 | J6: 2 | K6: 2 | L6: 3 | M6: 3 | N6: 3 | O6: 3 | P6: 4 | Q6: 4 | R6: 4 | S6: 5 | T6: 5 | U6: 5 | V6: 6
C7: ent(col) manque | E7: 2 | F7: 3 | G7: 4 | H7: 4 | I7: 5 | J7: 6 | K7: 7 | L7: 7 | M7: 8 | N7: 9 | O7: 10 | P7: 10 | Q7: 11 | R7: 12 | S7: 12 | T7: 13 | U7: 14 | V7: 17
C8: reste ok? | E8: =ABS((E6-E4)/E4) -> 0.25 | F8: 0.0625 | G8: 0.25 | H8: 0.25 | I8: 0.07142857143 | J8: 0.0625 | K8: 0.1666666667 | L8: 0.125 | M8: 0.02272727273 | N8: 0.0625 | O8: 0.1346153846 | P8: 0.07142857143 | Q8: 0 | R8: 0.0625 | S8: 0.1029411765 | T8: 0.04166666667 | U8: 0.01315789474 | V8: 0.02173913043
C9: manque ok? | E9: 0.09090909091 | F9: 0.02272727273 | G9: 0.09090909091 | H9: 0.09090909091 | I9: 0.02597402597 | J9: 0.02272727273 | K9: 0.06060606061 | L9: 0.04545454545 | M9: 0.00826446281 | N9: 0.02272727273 | O9: 0.04895104895 | P9: 0.02597402597 | Q9: 0 | R9: 0.02272727273 | S9: 0.03743315508 | T9: 0.01515151515 | U9: 0.004784688995 | V9: 0.00790513834
C10: tout ok? | E10: =E8+E9 -> 0.3409090909 | F10: 0.08522727273 | G10: 0.3409090909 | H10: 0.3409090909 | I10: 0.0974025974 | J10: 0.08522727273 | K10: 0.2272727273 | L10: 0.1704545455 | M10: 0.03099173554 | N10: 0.08522727273 | O10: 0.1835664336 | P10: 0.0974025974 | Q10: 0 | R10: 0.08522727273 | S10: 0.1403743316 | T10: 0.05681818182 | U10: 0.01794258373 | V10: 0.02964426877
C11: delta / 1 h (pix) | E11: =($B4-INT(E4+0.49)*E3)*8 -> -32 | F11: 8 | G11: 32 | H11: -32 | I11: -9.142857143 | J11: 8 | K11: 21.33333333 | L11: -16 | M11: -2.909090909 | N11: 8 | O11: 17.23076923 | P11: -9.142857143 | Q11: 0 | R11: 8 | S11: -13.17647059 | T11: -5.333333333 | U11: 1.684210526 | V11: =($B4-INT(V4+0.49)*V3)*8 -> 2.782608696
C12: h t col (ch) | E12: =$B3*E2+INT(E4+0.49) -> 205 | F12: 273 | G12: 341 | H12: 410 | I12: 478 | J12: 546 | K12: 614 | L12: 683 | M12: 751 | N12: 819 | O12: 887 | P12: 956 | Q12: 1024 | R12: 1092 | S12: 1161 | T12: 1229 | U12: 1297 | V12: =$B3*V2+INT(V4+0.49) -> 1570
C13: h t col (carré) | E13: =E12/E3 -> 10.25 | F13: 18.2 | G13: 28.41666667 | H13: 41 | I13: 55.76666667 | J13: 72.8 | K13: 92.1 | L13: 113.8333333 | M13: 137.6833333 | N13: 163.8 | O13: 192.1833333 | P13: 223.0666667 | Q13: 256 | R13: 291.2 | S13: 328.95 | T13: 368.7 | U13: 410.7166667 | V13: 601.8333333
C14: delta / h t (ch) | E14: =MOD(E12*$B1+$B2/2,$B2)-$B2/2 -> 12 | F14: -4 | G14: -20 | H14: 24 | I14: 8 | J14: -8 | K14: -24 | L14: 20 | M14: 4 | N14: -12 | O14: -28 | P14: 16 | Q14: 0 | R14: -16 | S14: 28 | T14: 12 | U14: -4 | V14: =MOD(V12*$B1+$B2/2,$B2)-$B2/2 -> -8
C15: delta / h t (pix) | E15: =E14*8 -> 96 | F15: -32 | G15: -160 | H15: 192 | I15: 64 | J15: -64 | K15: -192 | L15: 160 | M15: 32 | N15: -96 | O15: -224 | P15: 128 | Q15: 0 | R15: -128 | S15: 224 | T15: 96 | U15: -32 | V15: -64
C16: carré (pix) | E16: =E3*8 -> 160 | F16: 120 | G16: 96 | H16: 80 | I16: 68.57142857 | J16: 60 | K16: 53.33333333 | L16: 48 | M16: 43.63636364 | N16: 40 | O16: 36.92307692 | P16: 34.28571429 | Q16: 32 | R16: 30 | S16: 28.23529412 | T16: 26.66666667 | U16: 25.26315789 | V16: =V3*8 -> 20.86956522
C17: delta / carré (pix) | E17: =E15/E13 -> 9.365853659 | F17: -1.758241758 | G17: -5.630498534 | H17: 4.682926829 | I17: 1.147638972 | J17: -0.8791208791 | K17: -2.084690554 | L17: 1.40556369 | M17: 0.2324173829 | N17: -0.5860805861 | O17: -1.165553725 | P17: 0.573819486 | Q17: 0 | R17: -0.4395604396 | S17: 0.6809545524 | T17: 0.260374288 | U17: -0.07791259181 | V17: =V15/V13 -> -0.1063417336
A18: scroll h= | B18: 15 | C18: nb motif = | D18: =INT(D12/$B$18) -> 0 | E18: 13 | F18: 18 | G18: 22 | H18: 27 | I18: 63 | J18: 36 | K18: 40 | L18: 45 | M18: 151 | N18: 54 | O18: 59 | P18: 63 | Q18: 271 | R18: 72 | S18: 77 | T18: 81 | U18: 433 | V18: 732
C19: h motif (ch) | D19: =D12/D18 ->  | E19: =E12/E18 -> 15.76923077 | F19: =F12/F18 -> 15.16666667 | G19: 15.5 | H19: 15.18518519 | I19: 7.587301587 | J19: 15.16666667 | K19: 15.35 | L19: 15.17777778 | M19: 4.973509934 | N19: 15.16666667 | O19: 15.03389831 | P19: 15.17460317 | Q19: 3.778597786 | R19: 15.16666667 | S19: 15.07792208 | T19: 15.17283951 | U19: 2.995381062 | V19: 2.144808743
C20: h motif (pix) | D20: =D19*8 ->  | E20: =E19*8 -> 126.1538462 | F20: =F19*8 -> 121.3333333 | G20: 124 | H20: 121.4814815 | I20: 60.6984127 | J20: 121.3333333 | K20: 122.8 | L20: 121.4222222 | M20: 39.78807947 | N20: 121.3333333 | O20: 120.2711864 | P20: 121.3968254 | Q20: 30.22878229 | R20: 121.3333333 | S20: 120.6233766 | T20: 121.382716 | U20: 23.9630485 | V20: 17.15846995
C21: l motif (pix) | D21: =D3*8 -> 0 | E21: =E3*8 -> 160 | F21: =F3*8 -> 120 | G21: 96 | H21: 80 | I21: 68.57142857 | J21: 60 | K21: 53.33333333 | L21: 48 | M21: 43.63636364 | N21: 40 | O21: 36.92307692 | P21: 34.28571429 | Q21: 32 | R21: 30 | S21: 28.23529412 | T21: 26.66666667 | U21: 25.26315789 | V21: 20.86956522
C22: nb motif tenté | D22: =INT(($B18/D19)+0.49) ->  | E22: =INT(($B18/E19)+0.49) -> 1 | F22: =INT(($B18/F19)+0.49) -> 1 | G22: 1 | H22: 1 | I22: 2 | J22: 1 | K22: 1 | L22: 1 | M22: 3 | N22: 1 | O22: 1 | P22: 1 | Q22: 4 | R22: 1 | S22: 1 | T22: 1 | U22: 5 | V22: 7
C23: dh test (pix) | D23: =($B18-D22*D19)*8 ->  | E23: =($B18-E22*E19)*8 -> -6.153846154 | F23: =($B18-F22*F19)*8 -> -1.333333333 | G23: -4 | H23: -1.481481481 | I23: -1.396825397 | J23: -1.333333333 | K23: -2.8 | L23: -1.422222222 | M23: 0.6357615894 | N23: -1.333333333 | O23: -0.2711864407 | P23: -1.396825397 | Q23: -0.9151291513 | R23: -1.333333333 | S23: -0.6233766234 | T23: -1.382716049 | U23: 0.1847575058 | V23: -0.1092896175
C24: dl test (pix) | D24: =D22*D15/D18 ->  | E24: =E22*E15/E18 -> 7.384615385 | F24: =F22*F15/F18 -> -1.777777778 | G24: -7.272727273 | H24: 7.111111111 | I24: 2.031746032 | J24: -1.777777778 | K24: -4.8 | L24: 3.555555556 | M24: 0.6357615894 | N24: -1.777777778 | O24: -3.796610169 | P24: 2.031746032 | Q24: 0 | R24: -1.777777778 | S24: 2.909090909 | T24: 1.185185185 | U24: -0.3695150115 | V24: -0.6120218579
C26: lo | D26: =$B$1*2 -> 120 | F26: =$B$1*2 -> 120 | I26: =$B$1*2 -> 120 | M26: 120 | Q26: 120 | U26: 120 | V26: 120 | W26: largeur de l'offset (de l'écran)
C27: do | D27: =(D31-1)/2+TRUNC(D19*D22,0)*D26 ->  | F27: =(F31-1)/2+TRUNC(F19*F22,0)*F26 -> 1800 | I27: 1799 | M27: 1679 | Q27: 1799.5 | U27: 1680 | V27: 1800 | W27: le delta de l'offest (de l'éran) d'une anim à l'autre
C28: n_neg | D28: =-D18 -> 0 | F28: =-F18 -> -18 | I28: =-I18 -> -63 | M28: -151 | Q28: -271 | U28: -433 | V28: -732 | W28: nombre d'étapes d'animation dans la colonne
C29: dym | D29: =TRUNC(MOD(D20*D22,8)) ->  | F29: =TRUNC(MOD(F20*F22,8)) -> 1 | I29: =TRUNC(MOD(I20*I22,8)) -> 1 | M29: 7 | Q29: 0 | U29: 7 | V29: 0 | W29: le delta à chaque étape d'anim de (y modulo 8)
C30: dcym | D30: =(MOD(D20*D22,8)-D29)*D18 ->  | F30: =(MOD(F20*F22,8)-F29)*F18 -> 6 | I30: 25 | M30: 55 | Q30: 248 | U30: 353 | V30: 80 | W30: le delta pour le calcul précis de (y modulo 8)
C31: sx | D31: =-SIGN(D24) ->  | F31: =-SIGN(F24) -> 1 | I31: =-SIGN(I24) -> -1 | M31: =-SIGN(M24) -> -1 | Q31: =-SIGN(Q24) -> 0 | U31: =-SIGN(U24) -> 1 | V31: =-SIGN(V24) -> 1 | W31: le signe de dx, savoir si on inc-déc/rémente
C32: dxm | D32: =TRUNC(ABS(D24))*D31-(D31-1)/2*4*ABS(D31) ->  | F32: =TRUNC(ABS(F24))*F31-(F31-1)/2*4*ABS(F31) -> 1 | I32: 2 | M32: 4 | Q32: 0 | U32: 0 | V32: 0 | W32: le delta à chaque étage d'anim de x modulo 8)
C33: dcxm | D33: =(ABS(D24)-TRUNC(ABS(D24)))*D18 ->  | F33: =(ABS(F24)-TRUNC(ABS(F24)))*F18 -> 14 | I33: =(ABS(I24)-TRUNC(ABS(I24)))*I18 -> 2 | M33: 96 | Q33: 0 | U33: 160 | V33: 448 | W33: le delta pour le calcul précis de (x modulo 8)
C34: inv | D34: =ROUND(65536/D18,0) ->  | F34: =ROUND(65536/F18,0) -> 3641 | I34: =ROUND(65536/I18,0) -> 1040 | M34: 434 | Q34: 242 | U34: 151 | V34: 90 | W34: 65536/n

Sheet doyousea
A1: larg = | B1: 51
A2: ecr = | B2: 4096 | C2: nb col | E2: 3 | F2: 4 | G2: =F2+1 -> 5 | H2: 6 | I2: 7 | J2: 8 | K2: 9 | L2: 10 | M2: 11 | N2: 12 | O2: 13 | P2: 14 | Q2: 15 | R2: 16 | S2: 17 | T2: 18 | U2: 19 | V2: 23
A3: h | B3: =INT(B2/B1) -> 80 | C3: larg col | E3: =$B1/E2 -> 17 | F3: 12.75 | G3: 10.2 | H3: 8.5 | I3: 7.285714286 | J3: 6.375 | K3: 5.666666667 | L3: 5.1 | M3: 4.636363636 | N3: 4.25 | O3: 3.923076923 | P3: 3.642857143 | Q3: 3.4 | R3: 3.1875 | S3: 3 | T3: 2.833333333 | U3: 2.684210526 | V3: 2.217391304
A4: reste | B4: =B2-B1*B3 -> 16 | C4: en nb de col | E4: =$B4/E3 -> 0.9411764706 | F4: 1.254901961 | G4: 1.568627451 | H4: 1.882352941 | I4: 2.196078431 | J4: 2.509803922 | K4: 2.823529412 | L4: 3.137254902 | M4: 3.450980392 | N4: 3.764705882 | O4: 4.078431373 | P4: 4.392156863 | Q4: 4.705882353 | R4: 5.019607843 | S4: 5.333333333 | T4: 5.647058824 | U4: 5.960784314 | V4: 7.215686275
A5: manque | B5: =B1-B4 -> 35 | C5: en nb de col | E5: =$B5/E3 -> 2.058823529 | F5: 2.745098039 | G5: 3.431372549 | H5: 4.117647059 | I5: 4.803921569 | J5: 5.490196078 | K5: 6.176470588 | L5: 6.862745098 | M5: 7.549019608 | N5: 8.235294118 | O5: 8.921568627 | P5: 9.607843137 | Q5: 10.29411765 | R5: 10.98039216 | S5: 11.66666667 | T5: 12.35294118 | U5: 13.03921569 | V5: =$B5/V3 -> 15.78431373
C6: ent(col) reste | E6: =INT(E4+0.49) -> 1 | F6: 1 | G6: 2 | H6: 2 | I6: 2 | J6: 2 | K6: 3 | L6: 3 | M6: 3 | N6: 4 | O6: 4 | P6: 4 | Q6: 5 | R6: 5 | S6: 5 | T6: 6 | U6: 6 | V6: 7
C7: ent(col) manque | E7: 2 | F7: 3 | G7: 3 | H7: 4 | I7: 5 | J7: 5 | K7: 6 | L7: 7 | M7: 8 | N7: 8 | O7: 9 | P7: 10 | Q7: 10 | R7: 11 | S7: 12 | T7: 12 | U7: 13 | V7: 16
C8: reste ok? | E8: =ABS((E6-E4)/E4) -> 0.0625 | F8: 0.203125 | G8: 0.275 | H8: 0.0625 | I8: 0.08928571429 | J8: 0.203125 | K8: 0.0625 | L8: 0.04375 | M8: 0.1306818182 | N8: 0.0625 | O8: 0.01923076923 | P8: 0.08928571429 | Q8: 0.0625 | R8: 0.00390625 | S8: 0.0625 | T8: 0.0625 | U8: 0.006578947368 | V8: 0.02989130435
C9: manque ok? | E9: 0.02857142857 | F9: 0.09285714286 | G9: 0.1257142857 | H9: 0.02857142857 | I9: 0.04081632653 | J9: 0.08928571429 | K9: 0.02857142857 | L9: 0.02 | M9: 0.05974025974 | N9: 0.02857142857 | O9: 0.008791208791 | P9: 0.04081632653 | Q9: 0.02857142857 | R9: 0.001785714286 | S9: 0.02857142857 | T9: 0.02857142857 | U9: 0.003007518797 | V9: 0.01366459627
C10: tout ok? | E10: =E8+E9 -> 0.09107142857 | F10: 0.2959821429 | G10: 0.4007142857 | H10: 0.09107142857 | I10: 0.1301020408 | J10: 0.2924107143 | K10: 0.09107142857 | L10: 0.06375 | M10: 0.1904220779 | N10: 0.09107142857 | O10: 0.02802197802 | P10: 0.1301020408 | Q10: 0.09107142857 | R10: 0.005691964286 | S10: 0.09107142857 | T10: 0.09107142857 | U10: 0.009586466165 | V10: 0.04355590062
C11: delta / 1 h (pix) | E11: =($B4-INT(E4+0.49)*E3)*8 -> -8 | F11: 26 | G11: -35.2 | H11: -8 | I11: 11.42857143 | J11: 26 | K11: -8 | L11: 5.6 | M11: 16.72727273 | N11: -8 | O11: 2.461538462 | P11: 11.42857143 | Q11: -8 | R11: 0.5 | S11: 8 | T11: -8 | U11: -0.8421052632 | V11: =($B4-INT(V4+0.49)*V3)*8 -> 3.826086957
C12: h t col (ch) | E12: =$B3*E2+INT(E4+0.49) -> 241 | F12: 321 | G12: 402 | H12: 482 | I12: 562 | J12: 642 | K12: 723 | L12: 803 | M12: 883 | N12: 964 | O12: 1044 | P12: 1124 | Q12: 1205 | R12: 1285 | S12: 1365 | T12: 1446 | U12: 1526 | V12: =$B3*V2+INT(V4+0.49) -> 1847
C13: h t col (carré) | E13: =E12/E3 -> 14.17647059 | F13: 25.17647059 | G13: 39.41176471 | H13: 56.70588235 | I13: 77.1372549 | J13: 100.7058824 | K13: 127.5882353 | L13: 157.4509804 | M13: 190.4509804 | N13: 226.8235294 | O13: 266.1176471 | P13: 308.5490196 | Q13: 354.4117647 | R13: 403.1372549 | S13: 455 | T13: 510.3529412 | U13: 568.5098039 | V13: 832.9607843
C14: delta / h t (ch) | E14: =MOD(E12*$B1+$B2/2,$B2)-$B2/2 -> 3 | F14: -13 | G14: 22 | H14: 6 | I14: -10 | J14: -26 | K14: 9 | L14: -7 | M14: -23 | N14: 12 | O14: -4 | P14: -20 | Q14: 15 | R14: -1 | S14: -17 | T14: 18 | U14: 2 | V14: =MOD(V12*$B1+$B2/2,$B2)-$B2/2 -> -11
C15: delta / h t (pix) | E15: =E14*8 -> 24 | F15: -104 | G15: 176 | H15: 48 | I15: -80 | J15: -208 | K15: 72 | L15: -56 | M15: -184 | N15: 96 | O15: -32 | P15: -160 | Q15: 120 | R15: -8 | S15: -136 | T15: 144 | U15: 16 | V15: -88
C16: carré (pix) | E16: =E3*8 -> 136 | F16: 102 | G16: 81.6 | H16: 68 | I16: 58.28571429 | J16: 51 | K16: 45.33333333 | L16: 40.8 | M16: 37.09090909 | N16: 34 | O16: 31.38461538 | P16: 29.14285714 | Q16: 27.2 | R16: 25.5 | S16: 24 | T16: 22.66666667 | U16: 21.47368421 | V16: =V3*8 -> 17.73913043
C17: delta / carré (pix) | E17: =E15/E13 -> 1.692946058 | F17: -4.130841121 | G17: 4.465671642 | H17: 0.846473029 | I17: -1.037112354 | J17: -2.065420561 | K17: 0.5643153527 | L17: -0.3556662516 | M17: -0.9661278699 | N17: 0.4232365145 | O17: -0.1202475685 | P17: -0.5185561769 | Q17: 0.3385892116 | R17: -0.01984435798 | S17: -0.2989010989 | T17: 0.2821576763 | U17: 0.02814375388 | V17: =V15/V13 -> -0.1056472305
A18: scroll h= | B18: 16 | C18: nb motif = | D18: =INT(D12/$B$18) -> 0 | E18: =INT(E12/$B$18) -> 15 | F18: 20 | G18: 25 | H18: 30 | I18: 35 | J18: 40 | K18: 45 | L18: 151 | M18: =INT(M12/$B$18) -> 55 | N18: 60 | O18: 261 | P18: =INT(P12/$B$18) -> 70 | Q18: 75 | R18: 401 | S18: =INT(S12/$B$18) -> 85 | T18: 90 | U18: 95 | V18: 115
C19: h motif (ch) | D19: =D12/D18 ->  | E19: =E12/E18 -> 16.06666667 | F19: 16.05 | G19: 16.08 | H19: 16.06666667 | I19: 16.05714286 | J19: 16.05 | K19: 16.06666667 | L19: =L12/L18 -> 5.317880795 | M19: 16.05454545 | N19: 16.06666667 | O19: 4 | P19: 16.05714286 | Q19: 16.06666667 | R19: 3.204488778 | S19: 16.05882353 | T19: 16.06666667 | U19: 16.06315789 | V19: 16.06086957
C20: h motif (pix) | D20: =D19*8 ->  | E20: =E19*8 -> 128.5333333 | F20: 128.4 | G20: 128.64 | H20: 128.5333333 | I20: 128.4571429 | J20: 128.4 | K20: 128.5333333 | L20: =L19*8 -> 42.54304636 | M20: 128.4363636 | N20: 128.5333333 | O20: 32 | P20: 128.4571429 | Q20: 128.5333333 | R20: 25.63591022 | S20: 128.4705882 | T20: 128.5333333 | U20: 128.5052632 | V20: 128.4869565
C21: l motif (pix) | D21: =D3*8 -> 0 | E21: =E3*8 -> 136 | F21: 102 | G21: 81.6 | H21: 68 | I21: 58.28571429 | J21: 51 | K21: 45.33333333 | L21: =L3*8 -> 40.8 | M21: 37.09090909 | N21: 34 | O21: 31.38461538 | P21: 29.14285714 | Q21: 27.2 | R21: 25.5 | S21: 24 | T21: 22.66666667 | U21: 21.47368421 | V21: 17.73913043
C22: nb motif tenté | D22: =INT(($B18/D19)+0.49) ->  | E22: =INT(($B18/E19)+0.49) -> 1 | F22: 1 | G22: 1 | H22: 1 | I22: 1 | J22: 1 | K22: 1 | L22: =INT(($B18/L19)+0.49) -> 3 | M22: 1 | N22: 1 | O22: 4 | P22: 1 | Q22: 1 | R22: 5 | S22: 1 | T22: 1 | U22: 1 | V22: 1
C23: dh test (pix) | D23: =($B18-D22*D19)*8 ->  | E23: =($B18-E22*E19)*8 -> -0.5333333333 | F23: -0.4 | G23: -0.64 | H23: -0.5333333333 | I23: -0.4571428571 | J23: -0.4 | K23: -0.5333333333 | L23: =($B18-L22*L19)*8 -> 0.3708609272 | M23: -0.4363636364 | N23: -0.5333333333 | O23: 0 | P23: -0.4571428571 | Q23: -0.5333333333 | R23: -0.1795511222 | S23: -0.4705882353 | T23: -0.5333333333 | U23: -0.5052631579 | V23: -0.4869565217
C24: dl test (pix) | D24: =D22*D15/D18 ->  | E24: =E22*E15/E18 -> 1.6 | F24: -5.2 | G24: 7.04 | H24: 1.6 | I24: -2.285714286 | J24: -5.2 | K24: 1.6 | L24: =L22*L15/L18 -> -1.112582781 | M24: -3.345454545 | N24: 1.6 | O24: -0.4904214559 | P24: -2.285714286 | Q24: 1.6 | R24: -0.09975062344 | S24: -1.6 | T24: 1.6 | U24: 0.1684210526 | V24: -0.7652173913
C26: lo | D26: =$B$1*2 -> 102 | L26: =$B$1*2 -> 102 | O26: 102 | R26: 102 | W26: largeur de l'offset (de l'écran)
C27: do | D27: =(D31-1)/2+TRUNC(D19*D22,0)*D26 ->  | L27: =(L31-1)/2+TRUNC(L19*L22,0)*L26 -> 1530 | O27: 1632 | R27: 1632 | W27: le delta de l'offest (de l'éran) d'une anim à l'autre
C28: n_neg | D28: =-D18 -> 0 | L28: =-L18 -> -151 | O28: -261 | R28: -401 | W28: nombre d'étapes d'animation dans la colonne
C29: dym | D29: =TRUNC(MOD(D20*D22,8)) ->  | L29: =TRUNC(MOD(L20*L22,8)) -> 7 | O29: 0 | R29: 0 | W29: le delta à chaque étape d'anim de (y modulo 8)
C30: dcym | D30: =(MOD(D20*D22,8)-D29)*D18 ->  | L30: =(MOD(L20*L22,8)-L29)*L18 -> 95 | O30: 0 | R30: 72 | W30: le delta pour le calcul précis de (y modulo 8)
C31: sx | D31: =-SIGN(D24) ->  | L31: =-SIGN(L24) -> 1 | O31: =-SIGN(O24) -> 1 | R31: =-SIGN(R24) -> 1 | W31: le signe de dx, savoir si on inc-déc/rémente
C32: dxm | D32: =TRUNC(ABS(D24))*D31-(D31-1)/2*4*ABS(D31) ->  | L32: =TRUNC(ABS(L24))*L31-(L31-1)/2*4*ABS(L31) -> 1 | O32: 0 | R32: 0 | W32: le delta à chaque étage d'anim de x modulo 8)
C33: dcxm | D33: =(ABS(D24)-TRUNC(ABS(D24)))*D18 ->  | L33: =(ABS(L24)-TRUNC(ABS(L24)))*L18 -> 17 | O33: 128 | R33: 40 | W33: le delta pour le calcul précis de (x modulo 8)
C34: inv | D34: =ROUND(65536/D18,0) ->  | L34: =ROUND(65536/L18,0) -> 434 | O34: 251 | R34: 163 | W34: 65536/n

Sheet dragonfly
A1: larg = | B1: 51
A2: ecr = | B2: 4096 | C2: nb col | E2: 3 | F2: 4 | G2: =F2+1 -> 5 | H2: 6 | I2: 7 | J2: 8 | K2: 9 | L2: 10 | M2: 11 | N2: 12 | O2: 13 | P2: 14 | Q2: 15 | R2: 16 | S2: 17 | T2: 18 | U2: 19 | V2: 23
A3: h | B3: =INT(B2/B1) -> 80 | C3: larg col | E3: =$B1/E2 -> 17 | F3: 12.75 | G3: 10.2 | H3: 8.5 | I3: 7.285714286 | J3: 6.375 | K3: 5.666666667 | L3: 5.1 | M3: 4.636363636 | N3: 4.25 | O3: 3.923076923 | P3: 3.642857143 | Q3: 3.4 | R3: 3.1875 | S3: 3 | T3: 2.833333333 | U3: 2.684210526 | V3: 2.217391304
A4: reste | B4: =B2-B1*B3 -> 16 | C4: en nb de col | E4: =$B4/E3 -> 0.9411764706 | F4: 1.254901961 | G4: 1.568627451 | H4: 1.882352941 | I4: 2.196078431 | J4: 2.509803922 | K4: 2.823529412 | L4: 3.137254902 | M4: 3.450980392 | N4: 3.764705882 | O4: 4.078431373 | P4: 4.392156863 | Q4: 4.705882353 | R4: 5.019607843 | S4: 5.333333333 | T4: 5.647058824 | U4: 5.960784314 | V4: 7.215686275
A5: manque | B5: =B1-B4 -> 35 | C5: en nb de col | E5: =$B5/E3 -> 2.058823529 | F5: 2.745098039 | G5: 3.431372549 | H5: 4.117647059 | I5: 4.803921569 | J5: 5.490196078 | K5: 6.176470588 | L5: 6.862745098 | M5: 7.549019608 | N5: 8.235294118 | O5: 8.921568627 | P5: 9.607843137 | Q5: 10.29411765 | R5: 10.98039216 | S5: 11.66666667 | T5: 12.35294118 | U5: 13.03921569 | V5: =$B5/V3 -> 15.78431373
C6: ent(col) reste | E6: =INT(E4+0.49) -> 1 | F6: 1 | G6: 2 | H6: 2 | I6: 2 | J6: 2 | K6: 3 | L6: 3 | M6: 3 | N6: 4 | O6: 4 | P6: 4 | Q6: 5 | R6: 5 | S6: 5 | T6: 6 | U6: 6 | V6: 7
C7: ent(col) manque | E7: 2 | F7: 3 | G7: 3 | H7: 4 | I7: 5 | J7: 5 | K7: 6 | L7: 7 | M7: 8 | N7: 8 | O7: 9 | P7: 10 | Q7: 10 | R7: 11 | S7: 12 | T7: 12 | U7: 13 | V7: 16
C8: reste ok? | E8: =ABS((E6-E4)/E4) -> 0.0625 | F8: 0.203125 | G8: 0.275 | H8: 0.0625 | I8: 0.08928571429 | J8: 0.203125 | K8: 0.0625 | L8: 0.04375 | M8: 0.1306818182 | N8: 0.0625 | O8: 0.01923076923 | P8: 0.08928571429 | Q8: 0.0625 | R8: 0.00390625 | S8: 0.0625 | T8: 0.0625 | U8: 0.006578947368 | V8: 0.02989130435
C9: manque ok? | E9: 0.02857142857 | F9: 0.09285714286 | G9: 0.1257142857 | H9: 0.02857142857 | I9: 0.04081632653 | J9: 0.08928571429 | K9: 0.02857142857 | L9: 0.02 | M9: 0.05974025974 | N9: 0.02857142857 | O9: 0.008791208791 | P9: 0.04081632653 | Q9: 0.02857142857 | R9: 0.001785714286 | S9: 0.02857142857 | T9: 0.02857142857 | U9: 0.003007518797 | V9: 0.01366459627
C10: tout ok? | E10: =E8+E9 -> 0.09107142857 | F10: 0.2959821429 | G10: 0.4007142857 | H10: 0.09107142857 | I10: 0.1301020408 | J10: 0.2924107143 | K10: 0.09107142857 | L10: 0.06375 | M10: 0.1904220779 | N10: 0.09107142857 | O10: 0.02802197802 | P10: 0.1301020408 | Q10: 0.09107142857 | R10: 0.005691964286 | S10: 0.09107142857 | T10: 0.09107142857 | U10: 0.009586466165 | V10: 0.04355590062
C11: delta / 1 h (pix) | E11: =($B4-INT(E4+0.49)*E3)*8 -> -8 | F11: 26 | G11: -35.2 | H11: -8 | I11: 11.42857143 | J11: 26 | K11: -8 | L11: 5.6 | M11: 16.72727273 | N11: -8 | O11: 2.461538462 | P11: 11.42857143 | Q11: -8 | R11: 0.5 | S11: 8 | T11: -8 | U11: -0.8421052632 | V11: =($B4-INT(V4+0.49)*V3)*8 -> 3.826086957
C12: h t col (ch) | E12: =$B3*E2+INT(E4+0.49) -> 241 | F12: 321 | G12: 402 | H12: 482 | I12: 562 | J12: 642 | K12: 723 | L12: 803 | M12: 883 | N12: 964 | O12: 1044 | P12: 1124 | Q12: 1205 | R12: 1285 | S12: 1365 | T12: 1446 | U12: 1526 | V12: =$B3*V2+INT(V4+0.49) -> 1847
C13: h t col (carré) | E13: =E12/E3 -> 14.17647059 | F13: 25.17647059 | G13: 39.41176471 | H13: 56.70588235 | I13: 77.1372549 | J13: 100.7058824 | K13: 127.5882353 | L13: 157.4509804 | M13: 190.4509804 | N13: 226.8235294 | O13: 266.1176471 | P13: 308.5490196 | Q13: 354.4117647 | R13: 403.1372549 | S13: 455 | T13: 510.3529412 | U13: 568.5098039 | V13: 832.9607843
C14: delta / h t (ch) | E14: =MOD(E12*$B1+$B2/2,$B2)-$B2/2 -> 3 | F14: -13 | G14: 22 | H14: 6 | I14: -10 | J14: -26 | K14: 9 | L14: -7 | M14: -23 | N14: 12 | O14: -4 | P14: -20 | Q14: 15 | R14: -1 | S14: -17 | T14: 18 | U14: 2 | V14: =MOD(V12*$B1+$B2/2,$B2)-$B2/2 -> -11
C15: delta / h t (pix) | E15: =E14*8 -> 24 | F15: -104 | G15: 176 | H15: 48 | I15: -80 | J15: -208 | K15: 72 | L15: -56 | M15: -184 | N15: 96 | O15: -32 | P15: -160 | Q15: 120 | R15: -8 | S15: -136 | T15: 144 | U15: 16 | V15: -88
C16: carré (pix) | E16: =E3*8 -> 136 | F16: 102 | G16: 81.6 | H16: 68 | I16: 58.28571429 | J16: 51 | K16: 45.33333333 | L16: 40.8 | M16: 37.09090909 | N16: 34 | O16: 31.38461538 | P16: 29.14285714 | Q16: 27.2 | R16: 25.5 | S16: 24 | T16: 22.66666667 | U16: 21.47368421 | V16: =V3*8 -> 17.73913043
C17: delta / carré (pix) | E17: =E15/E13 -> 1.692946058 | F17: -4.130841121 | G17: 4.465671642 | H17: 0.846473029 | I17: -1.037112354 | J17: -2.065420561 | K17: 0.5643153527 | L17: -0.3556662516 | M17: -0.9661278699 | N17: 0.4232365145 | O17: -0.1202475685 | P17: -0.5185561769 | Q17: 0.3385892116 | R17: -0.01984435798 | S17: -0.2989010989 | T17: 0.2821576763 | U17: 0.02814375388 | V17: =V15/V13 -> -0.1056472305
A18: scroll h= | B18: 24 | C18: nb motif = | D18: =INT(D12/$B$18) -> 0 | E18: 10 | F18: 13 | G18: 16 | H18: 20 | I18: 23 | J18: 26 | K18: 30 | L18: 33 | M18: 36 | N18: 40 | O18: 261 | P18: =INT(P12/$B$18) -> 46 | Q18: 50 | R18: =53*7+4 -> 375 | S18: =INT(S12/$B$18) -> 56 | T18: 60 | U18: 63 | V18: 76
C19: h motif (ch) | D19: =D12/D18 ->  | E19: =E12/E18 -> 24.1 | F19: =F12/F18 -> 24.69230769 | G19: =G12/G18 -> 25.125 | H19: =H12/H18 -> 24.1 | I19: =I12/I18 -> 24.43478261 | J19: =J12/J18 -> 24.69230769 | K19: =K12/K18 -> 24.1 | L19: =L12/L18 -> 24.33333333 | M19: =M12/M18 -> 24.52777778 | N19: =N12/N18 -> 24.1 | O19: =O12/O18 -> 4 | P19: =P12/P18 -> 24.43478261 | Q19: =Q12/Q18 -> 24.1 | R19: =R12/R18 -> 3.426666667 | S19: =S12/S18 -> 24.375 | T19: =T12/T18 -> 24.1 | U19: =U12/U18 -> 24.22222222 | V19: =V12/V18 -> 24.30263158
C20: h motif (pix) | D20: =D19*8 ->  | E20: =E19*8 -> 192.8 | F20: =F19*8 -> 197.5384615 | G20: =G19*8 -> 201 | H20: =H19*8 -> 192.8 | I20: =I19*8 -> 195.4782609 | J20: =J19*8 -> 197.5384615 | K20: =K19*8 -> 192.8 | L20: =L19*8 -> 194.6666667 | M20: =M19*8 -> 196.2222222 | N20: =N19*8 -> 192.8 | O20: =O19*8 -> 32 | P20: =P19*8 -> 195.4782609 | Q20: =Q19*8 -> 192.8 | R20: 27.41333333 | S20: =S19*8 -> 195 | T20: =T19*8 -> 192.8 | U20: =U19*8 -> 193.7777778 | V20: =V19*8 -> 194.4210526
C21: l motif (pix) | D21: =D3*8 -> 0 | E21: =E3*8 -> 136 | F21: =F3*8 -> 102 | G21: =G3*8 -> 81.6 | H21: =H3*8 -> 68 | I21: =I3*8 -> 58.28571429 | J21: =J3*8 -> 51 | K21: =K3*8 -> 45.33333333 | L21: =L3*8 -> 40.8 | M21: =M3*8 -> 37.09090909 | N21: =N3*8 -> 34 | O21: =O3*8 -> 31.38461538 | P21: =P3*8 -> 29.14285714 | Q21: =Q3*8 -> 27.2 | R21: 25.5 | S21: =S3*8 -> 24 | T21: =T3*8 -> 22.66666667 | U21: =U3*8 -> 21.47368421 | V21: =V3*8 -> 17.73913043
C22: nb motif tenté | D22: =INT(($B18/D19)+0.49) ->  | E22: =INT(($B18/E19)+0.49) -> 1 | F22: =INT(($B18/F19)+0.49) -> 1 | G22: =INT(($B18/G19)+0.49) -> 1 | H22: =INT(($B18/H19)+0.49) -> 1 | I22: =INT(($B18/I19)+0.49) -> 1 | J22: =INT(($B18/J19)+0.49) -> 1 | K22: =INT(($B18/K19)+0.49) -> 1 | L22: =INT(($B18/L19)+0.49) -> 1 | M22: =INT(($B18/M19)+0.49) -> 1 | N22: =INT(($B18/N19)+0.49) -> 1 | O22: =INT(($B18/O19)+0.49) -> 6 | P22: =INT(($B18/P19)+0.49) -> 1 | Q22: =INT(($B18/Q19)+0.49) -> 1 | R22: 7 | S22: =INT(($B18/S19)+0.49) -> 1 | T22: =INT(($B18/T19)+0.49) -> 1 | U22: =INT(($B18/U19)+0.49) -> 1 | V22: =INT(($B18/V19)+0.49) -> 1
C23: dh test (pix) | D23: =($B18-D22*D19)*8 ->  | E23: =($B18-E22*E19)*8 -> -0.8 | F23: =($B18-F22*F19)*8 -> -5.538461538 | G23: =($B18-G22*G19)*8 -> -9 | H23: =($B18-H22*H19)*8 -> -0.8 | I23: =($B18-I22*I19)*8 -> -3.47826087 | J23: =($B18-J22*J19)*8 -> -5.538461538 | K23: =($B18-K22*K19)*8 -> -0.8 | L23: =($B18-L22*L19)*8 -> -2.666666667 | M23: =($B18-M22*M19)*8 -> -4.222222222 | N23: =($B18-N22*N19)*8 -> -0.8 | O23: =($B18-O22*O19)*8 -> 0 | P23: =($B18-P22*P19)*8 -> -3.47826087 | Q23: =($B18-Q22*Q19)*8 -> -0.8 | R23: 0.1066666667 | S23: =($B18-S22*S19)*8 -> -3 | T23: =($B18-T22*T19)*8 -> -0.8 | U23: =($B18-U22*U19)*8 -> -1.777777778 | V23: =($B18-V22*V19)*8 -> -2.421052632
C24: dl test (pix) | D24: =D22*D15/D18 ->  | E24: =E22*E15/E18 -> 2.4 | F24: =F22*F15/F18 -> -8 | G24: =G22*G15/G18 -> 11 | H24: =H22*H15/H18 -> 2.4 | I24: =I22*I15/I18 -> -3.47826087 | J24: =J22*J15/J18 -> -8 | K24: =K22*K15/K18 -> 2.4 | L24: =L22*L15/L18 -> -1.696969697 | M24: =M22*M15/M18 -> -5.111111111 | N24: =N22*N15/N18 -> 2.4 | O24: =O22*O15/O18 -> -0.7356321839 | P24: =P22*P15/P18 -> -3.47826087 | Q24: =Q22*Q15/Q18 -> 2.4 | R24: -0.1493333333 | S24: =S22*S15/S18 -> -2.428571429 | T24: =T22*T15/T18 -> 2.4 | U24: =U22*U15/U18 -> 0.253968254 | V24: =V22*V15/V18 -> -1.157894737
C26: lo | D26: =$B$1*2 -> 102 | O26: =$B$1*2 -> 102 | R26: 102 | W26: largeur de l'offset (de l'écran)
C27: do | D27: =(D31-1)/2+TRUNC(D19*D22,0)*D26 ->  | O27: =(O31-1)/2+TRUNC(O19*O22,0)*O26 -> 2448 | R27: 2346 | W27: le delta de l'offest (de l'éran) d'une anim à l'autre
C28: n_neg | D28: =-D18 -> 0 | O28: =-O18 -> -261 | R28: -375 | W28: nombre d'étapes d'animation dans la colonne
C29: dym | D29: =TRUNC(MOD(D20*D22,8)) ->  | O29: =TRUNC(MOD(O20*O22,8)) -> 0 | R29: 7 | W29: le delta à chaque étape d'anim de (y modulo 8)
C30: dcym | D30: =(MOD(D20*D22,8)-D29)*D18 ->  | O30: =(MOD(O20*O22,8)-O29)*O18 -> 0 | R30: 335 | W30: le delta pour le calcul précis de (y modulo 8)
C31: sx | D31: =-SIGN(D24) ->  | O31: =-SIGN(O24) -> 1 | R31: =-SIGN(R24) -> 1 | W31: le signe de dx, savoir si on inc-déc/rémente
C32: dxm | D32: =TRUNC(ABS(D24))*D31-(D31-1)/2*4*ABS(D31) ->  | O32: =TRUNC(ABS(O24))*O31-(O31-1)/2*4*ABS(O31) -> 0 | R32: 0 | W32: le delta à chaque étage d'anim de x modulo 8)
C33: dcxm | D33: =(ABS(D24)-TRUNC(ABS(D24)))*D18 ->  | O33: =(ABS(O24)-TRUNC(ABS(O24)))*O18 -> 192 | R33: 56 | W33: le delta pour le calcul précis de (x modulo 8)
C34: inv | D34: =ROUND(65536/D18,0) ->  | O34: =ROUND(65536/O18,0) -> 251 | R34: 175 | W34: 65536/n

Sheet dsk ghost
A1: larg = | B1: 60
A2: ecr = | B2: 1024 | C2: nb col | E2: 3 | F2: 4 | G2: =F2+1 -> 5 | H2: 6 | I2: 7 | J2: 8 | K2: 9 | L2: 10 | M2: 11 | N2: 12 | O2: 13 | P2: 14 | Q2: 15 | R2: 16 | S2: 17 | T2: 18 | U2: 19 | V2: 23
A3: h | B3: =INT(B2/B1) -> 17 | C3: larg col | E3: =$B1/E2 -> 20 | F3: 15 | G3: 12 | H3: 10 | I3: 8.571428571 | J3: 7.5 | K3: 6.666666667 | L3: 6 | M3: 5.454545455 | N3: 5 | O3: 4.615384615 | P3: 4.285714286 | Q3: 4 | R3: 3.75 | S3: 3.529411765 | T3: 3.333333333 | U3: 3.157894737 | V3: 2.608695652
A4: reste | B4: =B2-B1*B3 -> 4 | C4: en nb de col | E4: =$B4/E3 -> 0.2 | F4: 0.2666666667 | G4: 0.3333333333 | H4: 0.4 | I4: 0.4666666667 | J4: 0.5333333333 | K4: 0.6 | L4: 0.6666666667 | M4: 0.7333333333 | N4: 0.8 | O4: 0.8666666667 | P4: 0.9333333333 | Q4: 1 | R4: 1.066666667 | S4: 1.133333333 | T4: 1.2 | U4: 1.266666667 | V4: 1.533333333
A5: manque | B5: =B1-B4 -> 56 | C5: en nb de col | E5: =$B5/E3 -> 2.8 | F5: 3.733333333 | G5: 4.666666667 | H5: 5.6 | I5: 6.533333333 | J5: 7.466666667 | K5: 8.4 | L5: 9.333333333 | M5: 10.26666667 | N5: 11.2 | O5: 12.13333333 | P5: 13.06666667 | Q5: 14 | R5: 14.93333333 | S5: 15.86666667 | T5: 16.8 | U5: 17.73333333 | V5: =$B5/V3 -> 21.46666667
C6: ent(col) reste | E6: =INT(E4+0.49) -> 0 | F6: 0 | G6: 0 | H6: 0 | I6: 0 | J6: 1 | K6: 1 | L6: 1 | M6: 1 | N6: 1 | O6: 1 | P6: 1 | Q6: 1 | R6: 1 | S6: 1 | T6: 1 | U6: 1 | V6: 2
C7: ent(col) manque | E7: 3 | F7: 4 | G7: 5 | H7: 6 | I7: 7 | J7: 7 | K7: 8 | L7: 9 | M7: 10 | N7: 11 | O7: 12 | P7: 13 | Q7: 14 | R7: 15 | S7: 16 | T7: 17 | U7: 18 | V7: 21
C8: reste ok? | E8: =ABS((E6-E4)/E4) -> 1 | F8: 1 | G8: 1 | H8: 1 | I8: 1 | J8: 0.875 | K8: 0.6666666667 | L8: 0.5 | M8: 0.3636363636 | N8: 0.25 | O8: 0.1538461538 | P8: 0.07142857143 | Q8: 0 | R8: 0.0625 | S8: 0.1176470588 | T8: 0.1666666667 | U8: 0.2105263158 | V8: 0.3043478261
C9: manque ok? | E9: 0.07142857143 | F9: 0.07142857143 | G9: 0.07142857143 | H9: 0.07142857143 | I9: 0.07142857143 | J9: 0.0625 | K9: 0.04761904762 | L9: 0.03571428571 | M9: 0.02597402597 | N9: 0.01785714286 | O9: 0.01098901099 | P9: 0.005102040816 | Q9: 0 | R9: 0.004464285714 | S9: 0.008403361345 | T9: 0.0119047619 | U9: 0.01503759398 | V9: 0.02173913043
C10: tout ok? | E10: =E8+E9 -> 1.071428571 | F10: 1.071428571 | G10: 1.071428571 | H10: 1.071428571 | I10: 1.071428571 | J10: 0.9375 | K10: 0.7142857143 | L10: 0.5357142857 | M10: 0.3896103896 | N10: 0.2678571429 | O10: 0.1648351648 | P10: 0.07653061224 | Q10: 0 | R10: 0.06696428571 | S10: 0.1260504202 | T10: 0.1785714286 | U10: 0.2255639098 | V10: 0.3260869565
C11: delta / 1 h (pix) | E11: =($B4-INT(E4+0.49)*E3)*8 -> 32 | F11: 32 | G11: 32 | H11: 32 | I11: 32 | J11: -28 | K11: -21.33333333 | L11: -16 | M11: -11.63636364 | N11: -8 | O11: -4.923076923 | P11: -2.285714286 | Q11: 0 | R11: 2 | S11: 3.764705882 | T11: 5.333333333 | U11: 6.736842105 | V11: =($B4-INT(V4+0.49)*V3)*8 -> -9.739130435
C12: h t col (ch) | E12: =$B3*E2+INT(E4+0.49) -> 51 | F12: 68 | G12: 85 | H12: 102 | I12: 119 | J12: 137 | K12: 154 | L12: 171 | M12: 188 | N12: 205 | O12: 222 | P12: 239 | Q12: 256 | R12: 273 | S12: 290 | T12: 307 | U12: 324 | V12: =$B3*V2+INT(V4+0.49) -> 393
C13: h t col (carré) | E13: =E12/E3 -> 2.55 | F13: 4.533333333 | G13: 7.083333333 | H13: 10.2 | I13: 13.88333333 | J13: 18.26666667 | K13: 23.1 | L13: 28.5 | M13: 34.46666667 | N13: 41 | O13: 48.1 | P13: 55.76666667 | Q13: 64 | R13: 72.8 | S13: 82.16666667 | T13: 92.1 | U13: 102.6 | V13: 150.65
C14: delta / h t (ch) | E14: =MOD(E12*$B1+$B2/2,$B2)-$B2/2 -> -12 | F14: -16 | G14: -20 | H14: -24 | I14: -28 | J14: 28 | K14: 24 | L14: 20 | M14: 16 | N14: 12 | O14: 8 | P14: 4 | Q14: 0 | R14: -4 | S14: -8 | T14: -12 | U14: -16 | V14: =MOD(V12*$B1+$B2/2,$B2)-$B2/2 -> 28
C15: delta / h t (pix) | E15: =E14*8 -> -96 | F15: -128 | G15: -160 | H15: -192 | I15: -224 | J15: 224 | K15: 192 | L15: 160 | M15: 128 | N15: 96 | O15: 64 | P15: 32 | Q15: 0 | R15: -32 | S15: -64 | T15: -96 | U15: -128 | V15: 224
C16: carré (pix) | E16: =E3*8 -> 160 | F16: 120 | G16: 96 | H16: 80 | I16: 68.57142857 | J16: 60 | K16: 53.33333333 | L16: 48 | M16: 43.63636364 | N16: 40 | O16: 36.92307692 | P16: 34.28571429 | Q16: 32 | R16: 30 | S16: 28.23529412 | T16: 26.66666667 | U16: 25.26315789 | V16: =V3*8 -> 20.86956522
C17: delta / carré (pix) | E17: =E15/E13 -> -37.64705882 | F17: -28.23529412 | G17: -22.58823529 | H17: -18.82352941 | I17: -16.13445378 | J17: 12.26277372 | K17: 8.311688312 | L17: 5.614035088 | M17: 3.713733075 | N17: 2.341463415 | O17: 1.330561331 | P17: 0.573819486 | Q17: 0 | R17: -0.4395604396 | S17: -0.7789046653 | T17: -1.042345277 | U17: -1.247563353 | V17: =V15/V13 -> 1.486890143
A18: scroll h= | B18: 12 | C18: nb motif = | D18: =INT(D12/$B$18) -> 0 | E18: 4 | F18: 5 | G18: 7 | H18: 8 | I18: 9 | J18: 11 | K18: 12 | L18: 14 | M18: 15 | N18: 17 | O18: 18 | P18: 59 | Q18: 64 | R18: 68 | S18: 24 | T18: 25 | U18: 27 | V18: 32
C19: h motif (ch) | D19: =D12/D18 ->  | E19: =E12/E18 -> 12.75 | F19: 13.6 | G19: 12.14285714 | H19: 12.75 | I19: 13.22222222 | J19: 12.45454545 | K19: 12.83333333 | L19: 12.21428571 | M19: 12.53333333 | N19: 12.05882353 | O19: 12.33333333 | P19: 4.050847458 | Q19: 4 | R19: 4.014705882 | S19: 12.08333333 | T19: 12.28 | U19: 12 | V19: 12.28125
C20: h motif (pix) | D20: =D19*8 ->  | E20: =E19*8 -> 102 | F20: 108.8 | G20: 97.14285714 | H20: 102 | I20: 105.7777778 | J20: 99.63636364 | K20: 102.6666667 | L20: 97.71428571 | M20: 100.2666667 | N20: 96.47058824 | O20: 98.66666667 | P20: 32.40677966 | Q20: 32 | R20: 32.11764706 | S20: 96.66666667 | T20: 98.24 | U20: 96 | V20: 98.25
C21: l motif (pix) | D21: =D3*8 -> 0 | E21: =E3*8 -> 160 | F21: 120 | G21: 96 | H21: 80 | I21: 68.57142857 | J21: 60 | K21: 53.33333333 | L21: 48 | M21: 43.63636364 | N21: 40 | O21: 36.92307692 | P21: 34.28571429 | Q21: 32 | R21: 30 | S21: 28.23529412 | T21: 26.66666667 | U21: 25.26315789 | V21: 20.86956522
C22: nb motif tenté | D22: =INT(($B18/D19)+0.49) ->  | E22: =INT(($B18/E19)+0.49) -> 1 | F22: 1 | G22: 1 | H22: 1 | I22: 1 | J22: 1 | K22: 1 | L22: 1 | M22: 1 | N22: 1 | O22: 1 | P22: 3 | Q22: 3 | R22: 3 | S22: 1 | T22: 1 | U22: 1 | V22: 1
C23: dh test (pix) | D23: =($B18-D22*D19)*8 ->  | E23: =($B18-E22*E19)*8 -> -6 | F23: -12.8 | G23: -1.142857143 | H23: -6 | I23: -9.777777778 | J23: -3.636363636 | K23: -6.666666667 | L23: -1.714285714 | M23: -4.266666667 | N23: -0.4705882353 | O23: -2.666666667 | P23: -1.220338983 | Q23: 0 | R23: -0.3529411765 | S23: -0.6666666667 | T23: -2.24 | U23: 0 | V23: -2.25
C24: dl test (pix) | D24: =D22*D15/D18 ->  | E24: =E22*E15/E18 -> -24 | F24: -25.6 | G24: -22.85714286 | H24: -24 | I24: -24.88888889 | J24: 20.36363636 | K24: 16 | L24: 11.42857143 | M24: 8.533333333 | N24: 5.647058824 | O24: 3.555555556 | P24: 1.627118644 | Q24: 0 | R24: -1.411764706 | S24: -2.666666667 | T24: -3.84 | U24: -4.740740741 | V24: 7
C26: lo | E26: =$B$1*2 -> 120 | F26: =$B$1*2 -> 120 | G26: =$B$1*2 -> 120 | H26: 120 | I26: 120 | J26: 120 | K26: 120 | L26: 120 | M26: 120 | N26: 120 | O26: 120 | P26: 120 | Q26: 120 | R26: 120 | S26: 120 | T26: 120 | U26: 120 | V26: 120 | W26: largeur de l'offset (de l'écran)
C27: do | E27: =(E31-1)/2+TRUNC(E19*E22,0)*E26 -> 1440 | F27: 1560 | G27: 1440 | H27: 1440 | I27: 1560 | J27: 1439 | K27: 1439 | L27: 1439 | M27: 1439 | N27: 1439 | O27: 1439 | P27: 1439 | Q27: 1439.5 | R27: 1440 | S27: 1440 | T27: 1440 | U27: 1440 | V27: 1439 | W27: le delta de l'offest (de l'éran) d'une anim à l'autre
C28: n_neg | E28: =-E18 -> -4 | F28: =-F18 -> -5 | G28: =-G18 -> -7 | H28: -8 | I28: -9 | J28: -11 | K28: -12 | L28: -14 | M28: -15 | N28: -17 | O28: -18 | P28: -59 | Q28: -64 | R28: -68 | S28: -24 | T28: -25 | U28: -27 | V28: -32 | W28: nombre d'étapes d'animation dans la colonne
C29: dym | E29: =TRUNC(MOD(E20*E22,8)) -> 6 | F29: =TRUNC(MOD(F20*F22,8)) -> 4 | G29: =TRUNC(MOD(G20*G22,8)) -> 1 | H29: 6 | I29: 1 | J29: 3 | K29: 6 | L29: 1 | M29: 4 | N29: 0 | O29: 2 | P29: 1 | Q29: 0 | R29: 0 | S29: 0 | T29: 2 | U29: 0 | V29: 2 | W29: le delta à chaque étape d'anim de (y modulo 8)
C30: dcym | E30: =(MOD(E20*E22,8)-E29)*E18 -> 0 | F30: 4 | G30: 1 | H30: 0 | I30: 7 | J30: 7 | K30: 8 | L30: 10 | M30: 4 | N30: 8 | O30: 12 | P30: 13 | Q30: 0 | R30: 24 | S30: 16 | T30: 6 | U30: 0 | V30: 8 | W30: le delta pour le calcul précis de (y modulo 8)
C31: sx | E31: =-SIGN(E24) -> 1 | F31: =-SIGN(F24) -> 1 | G31: =-SIGN(G24) -> 1 | H31: 1 | I31: 1 | J31: -1 | K31: -1 | L31: -1 | M31: -1 | N31: -1 | O31: -1 | P31: -1 | Q31: 0 | R31: 1 | S31: 1 | T31: 1 | U31: 1 | V31: -1 | W31: le signe de dx, savoir si on inc-déc/rémente
C32: dxm | E32: =TRUNC(ABS(E24))*E31-(E31-1)/2*4*ABS(E31) -> 24 | F32: 25 | G32: 22 | H32: 24 | I32: 24 | J32: -16 | K32: -12 | L32: -7 | M32: -4 | N32: -1 | O32: 1 | P32: 3 | Q32: 0 | R32: 1 | S32: 2 | T32: 3 | U32: 4 | V32: -3 | W32: le delta à chaque étage d'anim de x modulo 8)
C33: dcxm | E33: =(ABS(E24)-TRUNC(ABS(E24)))*E18 -> 0 | F33: =(ABS(F24)-TRUNC(ABS(F24)))*F18 -> 3 | G33: =(ABS(G24)-TRUNC(ABS(G24)))*G18 -> 6 | H33: 0 | I33: 8 | J33: 4 | K33: 0 | L33: 6 | M33: 8 | N33: 11 | O33: 10 | P33: 37 | Q33: 0 | R33: 28 | S33: 16 | T33: 21 | U33: 20 | V33: 0 | W33: le delta pour le calcul précis de (x modulo 8)
C34: inv | E34: =ROUND(65536/E18,0) -> 16384 | F34: =ROUND(65536/F18,0) -> 13107 | G34: =ROUND(65536/G18,0) -> 9362 | H34: 8192 | I34: 7282 | J34: 5958 | K34: 5461 | L34: 4681 | M34: 4369 | N34: 3855 | O34: 3641 | P34: 1111 | Q34: 1024 | R34: 964 | S34: 2731 | T34: 2621 | U34: 2427 | V34: 2048 | W34: 65536/n

Sheet donkey kong - rubber bar
A1: larg = | B1: 48
A2: ecr = | B2: 1024 | C2: nb col | E2: 3 | F2: 4 | G2: =F2+1 -> 5 | H2: 6 | I2: 7 | J2: 8 | K2: 9 | L2: 10 | M2: 11 | N2: 12 | O2: 13 | P2: 14 | Q2: 15 | R2: 16 | S2: 17 | T2: 18 | U2: 19 | V2: 23
A3: h | B3: =INT(B2/B1) -> 21 | C3: larg col | E3: =$B1/E2 -> 16 | F3: 12 | G3: 9.6 | H3: 8 | I3: 6.857142857 | J3: 6 | K3: 5.333333333 | L3: 4.8 | M3: 4.363636364 | N3: 4 | O3: 3.692307692 | P3: 3.428571429 | Q3: 3.2 | R3: 3 | S3: 2.823529412 | T3: 2.666666667 | U3: 2.526315789 | V3: 2.086956522
A4: reste | B4: =B2-B1*B3 -> 16 | C4: en nb de col | E4: =$B4/E3 -> 1 | F4: 1.333333333 | G4: 1.666666667 | H4: 2 | I4: 2.333333333 | J4: 2.666666667 | K4: 3 | L4: 3.333333333 | M4: 3.666666667 | N4: 4 | O4: 4.333333333 | P4: 4.666666667 | Q4: 5 | R4: 5.333333333 | S4: 5.666666667 | T4: 6 | U4: 6.333333333 | V4: 7.666666667
A5: manque | B5: =B1-B4 -> 32 | C5: en nb de col | E5: =$B5/E3 -> 2 | F5: 2.666666667 | G5: 3.333333333 | H5: 4 | I5: 4.666666667 | J5: 5.333333333 | K5: 6 | L5: 6.666666667 | M5: 7.333333333 | N5: 8 | O5: 8.666666667 | P5: 9.333333333 | Q5: 10 | R5: 10.66666667 | S5: 11.33333333 | T5: 12 | U5: 12.66666667 | V5: =$B5/V3 -> 15.33333333
C6: ent(col) reste | E6: =INT(E4+0.49) -> 1 | F6: 1 | G6: 2 | H6: 2 | I6: 2 | J6: 3 | K6: 3 | L6: 3 | M6: 4 | N6: 4 | O6: 4 | P6: 5 | Q6: 5 | R6: 5 | S6: 6 | T6: 6 | U6: 6 | V6: 8
C7: ent(col) manque | E7: 2 | F7: 3 | G7: 3 | H7: 4 | I7: 5 | J7: 5 | K7: 6 | L7: 7 | M7: 7 | N7: 8 | O7: 9 | P7: 9 | Q7: 10 | R7: 11 | S7: 11 | T7: 12 | U7: 13 | V7: 15
C8: reste ok? | E8: =ABS((E6-E4)/E4) -> 0 | F8: 0.25 | G8: 0.2 | H8: 0 | I8: 0.1428571429 | J8: 0.125 | K8: 0 | L8: 0.1 | M8: 0.09090909091 | N8: 0 | O8: 0.07692307692 | P8: 0.07142857143 | Q8: 0 | R8: 0.0625 | S8: 0.05882352941 | T8: 0 | U8: 0.05263157895 | V8: 0.04347826087
C9: manque ok? | E9: 0 | F9: 0.125 | G9: 0.1 | H9: 0 | I9: 0.07142857143 | J9: 0.0625 | K9: 0 | L9: 0.05 | M9: 0.04545454545 | N9: 0 | O9: 0.03846153846 | P9: 0.03571428571 | Q9: 0 | R9: 0.03125 | S9: 0.02941176471 | T9: 0 | U9: 0.02631578947 | V9: 0.02173913043
C10: tout ok? | E10: =E8+E9 -> 0 | F10: 0.375 | G10: 0.3 | H10: 0 | I10: 0.2142857143 | J10: 0.1875 | K10: 0 | L10: 0.15 | M10: 0.1363636364 | N10: 0 | O10: 0.1153846154 | P10: 0.1071428571 | Q10: 0 | R10: 0.09375 | S10: 0.08823529412 | T10: 0 | U10: 0.07894736842 | V10: 0.0652173913
C11: delta / 1 h (pix) | E11: =($B4-INT(E4+0.49)*E3)*8 -> 0 | F11: 32 | G11: -25.6 | H11: 0 | I11: 18.28571429 | J11: -16 | K11: 0 | L11: 12.8 | M11: -11.63636364 | N11: 0 | O11: 9.846153846 | P11: -9.142857143 | Q11: 0 | R11: 8 | S11: -7.529411765 | T11: 0 | U11: 6.736842105 | V11: =($B4-INT(V4+0.49)*V3)*8 -> -5.565217391
C12: h t col (ch) | E12: =$B3*E2+INT(E4+0.49) -> 64 | F12: 85 | G12: 107 | H12: 128 | I12: 149 | J12: 171 | K12: 192 | L12: 213 | M12: 235 | N12: 256 | O12: 277 | P12: 299 | Q12: 320 | R12: 341 | S12: 363 | T12: 384 | U12: 405 | V12: =$B3*V2+INT(V4+0.49) -> 491
C13: h t col (carré) | E13: =E12/E3 -> 4 | F13: 7.083333333 | G13: 11.14583333 | H13: 16 | I13: 21.72916667 | J13: 28.5 | K13: 36 | L13: 44.375 | M13: 53.85416667 | N13: 64 | O13: 75.02083333 | P13: 87.20833333 | Q13: 100 | R13: 113.6666667 | S13: 128.5625 | T13: 144 | U13: 160.3125 | V13: 235.2708333
C14: delta / h t (ch) | E14: =MOD(E12*$B1+$B2/2,$B2)-$B2/2 -> 0 | F14: -16 | G14: 16 | H14: 0 | I14: -16 | J14: 16 | K14: 0 | L14: -16 | M14: 16 | N14: 0 | O14: -16 | P14: 16 | Q14: 0 | R14: -16 | S14: 16 | T14: 0 | U14: -16 | V14: =MOD(V12*$B1+$B2/2,$B2)-$B2/2 -> 16
C15: delta / h t (pix) | E15: =E14*8 -> 0 | F15: -128 | G15: 128 | H15: 0 | I15: -128 | J15: 128 | K15: 0 | L15: -128 | M15: 128 | N15: 0 | O15: -128 | P15: 128 | Q15: 0 | R15: -128 | S15: 128 | T15: 0 | U15: -128 | V15: 128
C16: carré (pix) | E16: =E3*8 -> 128 | F16: 96 | G16: 76.8 | H16: 64 | I16: 54.85714286 | J16: 48 | K16: 42.66666667 | L16: 38.4 | M16: 34.90909091 | N16: 32 | O16: 29.53846154 | P16: 27.42857143 | Q16: 25.6 | R16: 24 | S16: 22.58823529 | T16: 21.33333333 | U16: 20.21052632 | V16: =V3*8 -> 16.69565217
C17: delta / carré (pix) | E17: =E15/E13 -> 0 | F17: -18.07058824 | G17: 11.48411215 | H17: 0 | I17: -5.890699904 | J17: 4.49122807 | K17: 0 | L17: -2.884507042 | M17: 2.376789168 | N17: 0 | O17: -1.706192724 | P17: 1.467749642 | Q17: 0 | R17: -1.126099707 | S17: 0.9956246962 | T17: 0 | U17: -0.7984405458 | V17: =V15/V13 -> 0.5440538387
A18: scroll h= | B18: 2 | C18: nb motif = | D18: =INT(D12/$B$18) -> 0 | E18: 32 | F18: 42 | G18: 53 | H18: 64 | I18: 74 | J18: 85 | K18: 96 | L18: 106 | M18: 117 | N18: 128 | O18: 138 | P18: 149 | Q18: 160 | R18: 170 | S18: 181 | T18: 192 | U18: 202 | V18: 245
C19: h motif (ch) | D19: =D12/D18 ->  | E19: =E12/E18 -> 2 | F19: 2.023809524 | G19: 2.018867925 | H19: 2 | I19: 2.013513514 | J19: 2.011764706 | K19: 2 | L19: 2.009433962 | M19: 2.008547009 | N19: 2 | O19: 2.007246377 | P19: 2.006711409 | Q19: 2 | R19: 2.005882353 | S19: 2.005524862 | T19: 2 | U19: 2.004950495 | V19: 2.004081633
C20: h motif (pix) | D20: =D19*8 ->  | E20: =E19*8 -> 16 | F20: 16.19047619 | G20: 16.1509434 | H20: 16 | I20: 16.10810811 | J20: 16.09411765 | K20: 16 | L20: 16.0754717 | M20: 16.06837607 | N20: 16 | O20: 16.05797101 | P20: 16.05369128 | Q20: 16 | R20: 16.04705882 | S20: 16.0441989 | T20: 16 | U20: 16.03960396 | V20: 16.03265306
C21: l motif (pix) | D21: =D3*8 -> 0 | E21: =E3*8 -> 128 | F21: 96 | G21: 76.8 | H21: 64 | I21: 54.85714286 | J21: 48 | K21: 42.66666667 | L21: 38.4 | M21: 34.90909091 | N21: 32 | O21: 29.53846154 | P21: 27.42857143 | Q21: 25.6 | R21: 24 | S21: 22.58823529 | T21: 21.33333333 | U21: 20.21052632 | V21: 16.69565217
C22: nb motif tenté | D22: =INT(($B18/D19)+0.49) ->  | E22: =INT(($B18/E19)+0.49) -> 1 | F22: 1 | G22: 1 | H22: 1 | I22: 1 | J22: 1 | K22: 1 | L22: 1 | M22: 1 | N22: 1 | O22: 1 | P22: 1 | Q22: 1 | R22: 1 | S22: 1 | T22: 1 | U22: 1 | V22: 1
C23: dh test (pix) | D23: =($B18-D22*D19)*8 ->  | E23: =($B18-E22*E19)*8 -> 0 | F23: -0.1904761905 | G23: -0.1509433962 | H23: 0 | I23: -0.1081081081 | J23: -0.09411764706 | K23: 0 | L23: -0.07547169811 | M23: -0.06837606838 | N23: 0 | O23: -0.05797101449 | P23: -0.05369127517 | Q23: 0 | R23: -0.04705882353 | S23: -0.04419889503 | T23: 0 | U23: -0.0396039604 | V23: -0.03265306122
C24: dl test (pix) | D24: =D22*D15/D18 ->  | E24: =E22*E15/E18 -> 0 | F24: -3.047619048 | G24: 2.41509434 | H24: 0 | I24: -1.72972973 | J24: 1.505882353 | K24: 0 | L24: -1.20754717 | M24: 1.094017094 | N24: 0 | O24: -0.9275362319 | P24: 0.8590604027 | Q24: 0 | R24: -0.7529411765 | S24: 0.7071823204 | T24: 0 | U24: -0.6336633663 | V24: 0.5224489796
C26: lo | E26: =$B$1*2 -> 96 | F26: =$B$1*2 -> 96 | G26: =$B$1*2 -> 96 | H26: 96 | I26: 96 | J26: 96 | K26: 96 | L26: 96 | M26: 96 | N26: 96 | O26: 96 | P26: 96 | Q26: 96 | R26: 96 | S26: 96 | T26: 96 | U26: 96 | V26: 96 | W26: largeur de l'offset (de l'écran)
C27: do | E27: =(E31-1)/2+TRUNC(E19*E22,0)*E26 -> 191.5 | F27: 192 | G27: 191 | H27: 191.5 | I27: 192 | J27: 191 | K27: 191.5 | L27: 192 | M27: 191 | N27: 191.5 | O27: 192 | P27: 191 | Q27: 191.5 | R27: 192 | S27: 191 | T27: 191.5 | U27: 192 | V27: 191 | W27: le delta de l'offest (de l'éran) d'une anim à l'autre
C28: n_neg | E28: =-E18 -> -32 | F28: =-F18 -> -42 | G28: =-G18 -> -53 | H28: -64 | I28: -74 | J28: -85 | K28: -96 | L28: -106 | M28: -117 | N28: -128 | O28: -138 | P28: -149 | Q28: -160 | R28: -170 | S28: -181 | T28: -192 | U28: -202 | V28: -245 | W28: nombre d'étapes d'animation dans la colonne
C29: dym | E29: =TRUNC(MOD(E20*E22,8)) -> 0 | F29: =TRUNC(MOD(F20*F22,8)) -> 0 | G29: =TRUNC(MOD(G20*G22,8)) -> 0 | H29: 0 | I29: 0 | J29: 0 | K29: 0 | L29: 0 | M29: 0 | N29: 0 | O29: 0 | P29: 0 | Q29: 0 | R29: 0 | S29: 0 | T29: 0 | U29: 0 | V29: 0 | W29: le delta à chaque étape d'anim de (y modulo 8)
C30: dcym | E30: =(MOD(E20*E22,8)-E29)*E18 -> 0 | F30: 8 | G30: 8 | H30: 0 | I30: 8 | J30: 8 | K30: 0 | L30: 8 | M30: 8 | N30: 0 | O30: 8 | P30: 8 | Q30: 0 | R30: 8 | S30: 8 | T30: 0 | U30: 8 | V30: 8 | W30: le delta pour le calcul précis de (y modulo 8)
C31: sx | E31: =-SIGN(E24) -> 0 | F31: =-SIGN(F24) -> 1 | G31: =-SIGN(G24) -> -1 | H31: 0 | I31: 1 | J31: -1 | K31: 0 | L31: 1 | M31: -1 | N31: 0 | O31: 1 | P31: -1 | Q31: 0 | R31: 1 | S31: -1 | T31: 0 | U31: 1 | V31: -1 | W31: le signe de dx, savoir si on inc-déc/rémente
C32: dxm | E32: =TRUNC(ABS(E24))*E31-(E31-1)/2*4*ABS(E31) -> 0 | F32: 3 | G32: 2 | H32: 0 | I32: 1 | J32: 3 | K32: 0 | L32: 1 | M32: 3 | N32: 0 | O32: 0 | P32: 4 | Q32: 0 | R32: 0 | S32: 4 | T32: 0 | U32: 0 | V32: 4 | W32: le delta à chaque étage d'anim de x modulo 8)
C33: dcxm | E33: =(ABS(E24)-TRUNC(ABS(E24)))*E18 -> 0 | F33: =(ABS(F24)-TRUNC(ABS(F24)))*F18 -> 2 | G33: =(ABS(G24)-TRUNC(ABS(G24)))*G18 -> 22 | H33: 0 | I33: 54 | J33: 43 | K33: 0 | L33: 22 | M33: 11 | N33: 0 | O33: 128 | P33: 128 | Q33: 0 | R33: 128 | S33: 128 | T33: 0 | U33: 128 | V33: 128 | W33: le delta pour le calcul précis de (x modulo 8)
C34: inv | E34: =ROUND(65536/E18,0) -> 2048 | F34: =ROUND(65536/F18,0) -> 1560 | G34: =ROUND(65536/G18,0) -> 1237 | H34: 1024 | I34: 886 | J34: 771 | K34: 683 | L34: 618 | M34: 560 | N34: 512 | O34: 475 | P34: 440 | Q34: 410 | R34: 386 | S34: 362 | T34: 341 | U34: 324 | V34: 267 | W34: 65536/n

Sheet donkey kong - gears
A1: larg = | B1: 48
A2: ecr = | B2: 1024 | C2: nb col | E2: 3 | F2: 4 | G2: =F2+1 -> 5 | H2: 6 | I2: 7 | J2: 8 | K2: 9 | L2: 10 | M2: 11 | N2: 12 | O2: 13 | P2: 14 | Q2: 15 | R2: 16 | S2: 17 | T2: 18 | U2: 19 | V2: 23
A3: h | B3: =INT(B2/B1) -> 21 | C3: larg col | E3: =$B1/E2 -> 16 | F3: 12 | G3: 9.6 | H3: 8 | I3: 6.857142857 | J3: 6 | K3: 5.333333333 | L3: 4.8 | M3: 4.363636364 | N3: 4 | O3: 3.692307692 | P3: 3.428571429 | Q3: 3.2 | R3: 3 | S3: 2.823529412 | T3: 2.666666667 | U3: 2.526315789 | V3: 2.086956522
A4: reste | B4: =B2-B1*B3 -> 16 | C4: en nb de col | E4: =$B4/E3 -> 1 | F4: 1.333333333 | G4: 1.666666667 | H4: 2 | I4: 2.333333333 | J4: 2.666666667 | K4: 3 | L4: 3.333333333 | M4: 3.666666667 | N4: 4 | O4: 4.333333333 | P4: 4.666666667 | Q4: 5 | R4: 5.333333333 | S4: 5.666666667 | T4: 6 | U4: 6.333333333 | V4: 7.666666667
A5: manque | B5: =B1-B4 -> 32 | C5: en nb de col | E5: =$B5/E3 -> 2 | F5: 2.666666667 | G5: 3.333333333 | H5: 4 | I5: 4.666666667 | J5: 5.333333333 | K5: 6 | L5: 6.666666667 | M5: 7.333333333 | N5: 8 | O5: 8.666666667 | P5: 9.333333333 | Q5: 10 | R5: 10.66666667 | S5: 11.33333333 | T5: 12 | U5: 12.66666667 | V5: =$B5/V3 -> 15.33333333
C6: ent(col) reste | E6: =INT(E4+0.49) -> 1 | F6: 1 | G6: 2 | H6: 2 | I6: 2 | J6: 3 | K6: 3 | L6: 3 | M6: 4 | N6: 4 | O6: 4 | P6: 5 | Q6: 5 | R6: 5 | S6: 6 | T6: 6 | U6: 6 | V6: 8
C7: ent(col) manque | E7: 2 | F7: 3 | G7: 3 | H7: 4 | I7: 5 | J7: 5 | K7: 6 | L7: 7 | M7: 7 | N7: 8 | O7: 9 | P7: 9 | Q7: 10 | R7: 11 | S7: 11 | T7: 12 | U7: 13 | V7: 15
C8: reste ok? | E8: =ABS((E6-E4)/E4) -> 0 | F8: 0.25 | G8: 0.2 | H8: 0 | I8: 0.1428571429 | J8: 0.125 | K8: 0 | L8: 0.1 | M8: 0.09090909091 | N8: 0 | O8: 0.07692307692 | P8: 0.07142857143 | Q8: 0 | R8: 0.0625 | S8: 0.05882352941 | T8: 0 | U8: 0.05263157895 | V8: 0.04347826087
C9: manque ok? | E9: 0 | F9: 0.125 | G9: 0.1 | H9: 0 | I9: 0.07142857143 | J9: 0.0625 | K9: 0 | L9: 0.05 | M9: 0.04545454545 | N9: 0 | O9: 0.03846153846 | P9: 0.03571428571 | Q9: 0 | R9: 0.03125 | S9: 0.02941176471 | T9: 0 | U9: 0.02631578947 | V9: 0.02173913043
C10: tout ok? | E10: =E8+E9 -> 0 | F10: 0.375 | G10: 0.3 | H10: 0 | I10: 0.2142857143 | J10: 0.1875 | K10: 0 | L10: 0.15 | M10: 0.1363636364 | N10: 0 | O10: 0.1153846154 | P10: 0.1071428571 | Q10: 0 | R10: 0.09375 | S10: 0.08823529412 | T10: 0 | U10: 0.07894736842 | V10: 0.0652173913
C11: delta / 1 h (pix) | E11: =($B4-INT(E4+0.49)*E3)*8 -> 0 | F11: 32 | G11: -25.6 | H11: 0 | I11: 18.28571429 | J11: -16 | K11: 0 | L11: 12.8 | M11: -11.63636364 | N11: 0 | O11: 9.846153846 | P11: -9.142857143 | Q11: 0 | R11: 8 | S11: -7.529411765 | T11: 0 | U11: 6.736842105 | V11: =($B4-INT(V4+0.49)*V3)*8 -> -5.565217391
C12: h t col (ch) | E12: =$B3*E2+INT(E4+0.49) -> 64 | F12: 85 | G12: 107 | H12: 128 | I12: 149 | J12: 171 | K12: 192 | L12: 213 | M12: 235 | N12: 256 | O12: 277 | P12: 299 | Q12: 320 | R12: 341 | S12: 363 | T12: 384 | U12: 405 | V12: =$B3*V2+INT(V4+0.49) -> 491
C13: h t col (carré) | E13: =E12/E3 -> 4 | F13: 7.083333333 | G13: 11.14583333 | H13: 16 | I13: 21.72916667 | J13: 28.5 | K13: 36 | L13: 44.375 | M13: 53.85416667 | N13: 64 | O13: 75.02083333 | P13: 87.20833333 | Q13: 100 | R13: 113.6666667 | S13: 128.5625 | T13: 144 | U13: 160.3125 | V13: 235.2708333
C14: delta / h t (ch) | E14: =MOD(E12*$B1+$B2/2,$B2)-$B2/2 -> 0 | F14: -16 | G14: 16 | H14: 0 | I14: -16 | J14: 16 | K14: 0 | L14: -16 | M14: 16 | N14: 0 | O14: -16 | P14: 16 | Q14: 0 | R14: -16 | S14: 16 | T14: 0 | U14: -16 | V14: =MOD(V12*$B1+$B2/2,$B2)-$B2/2 -> 16
C15: delta / h t (pix) | E15: =E14*8 -> 0 | F15: -128 | G15: 128 | H15: 0 | I15: -128 | J15: 128 | K15: 0 | L15: -128 | M15: 128 | N15: 0 | O15: -128 | P15: 128 | Q15: 0 | R15: -128 | S15: 128 | T15: 0 | U15: -128 | V15: 128
C16: carré (pix) | E16: =E3*8 -> 128 | F16: 96 | G16: 76.8 | H16: 64 | I16: 54.85714286 | J16: 48 | K16: 42.66666667 | L16: 38.4 | M16: 34.90909091 | N16: 32 | O16: 29.53846154 | P16: 27.42857143 | Q16: 25.6 | R16: 24 | S16: 22.58823529 | T16: 21.33333333 | U16: 20.21052632 | V16: =V3*8 -> 16.69565217
C17: delta / carré (pix) | E17: =E15/E13 -> 0 | F17: -18.07058824 | G17: 11.48411215 | H17: 0 | I17: -5.890699904 | J17: 4.49122807 | K17: 0 | L17: -2.884507042 | M17: 2.376789168 | N17: 0 | O17: -1.706192724 | P17: 1.467749642 | Q17: 0 | R17: -1.126099707 | S17: 0.9956246962 | T17: 0 | U17: -0.7984405458 | V17: =V15/V13 -> 0.5440538387
A18: scroll h= | B18: 4 | C18: nb motif = | D18: =INT(D12/$B$18) -> 0 | E18: 16 | F18: 21 | G18: 26 | H18: 32 | I18: 37 | J18: 42 | K18: 48 | L18: 53 | M18: 58 | N18: 64 | O18: 69 | P18: 74 | Q18: 80 | R18: 85 | S18: 90 | T18: 96 | U18: 101 | V18: 122
C19: h motif (ch) | D19: =D12/D18 ->  | E19: =E12/E18 -> 4 | F19: 4.047619048 | G19: 4.115384615 | H19: 4 | I19: 4.027027027 | J19: 4.071428571 | K19: 4 | L19: 4.018867925 | M19: 4.051724138 | N19: 4 | O19: 4.014492754 | P19: 4.040540541 | Q19: 4 | R19: 4.011764706 | S19: 4.033333333 | T19: 4 | U19: 4.00990099 | V19: 4.024590164
C20: h motif (pix) | D20: =D19*8 ->  | E20: =E19*8 -> 32 | F20: 32.38095238 | G20: 32.92307692 | H20: 32 | I20: 32.21621622 | J20: 32.57142857 | K20: 32 | L20: 32.1509434 | M20: 32.4137931 | N20: 32 | O20: 32.11594203 | P20: 32.32432432 | Q20: 32 | R20: 32.09411765 | S20: 32.26666667 | T20: 32 | U20: 32.07920792 | V20: 32.19672131
C21: l motif (pix) | D21: =D3*8 -> 0 | E21: =E3*8 -> 128 | F21: 96 | G21: 76.8 | H21: 64 | I21: 54.85714286 | J21: 48 | K21: 42.66666667 | L21: 38.4 | M21: 34.90909091 | N21: 32 | O21: 29.53846154 | P21: 27.42857143 | Q21: 25.6 | R21: 24 | S21: 22.58823529 | T21: 21.33333333 | U21: 20.21052632 | V21: 16.69565217
C22: nb motif tenté | D22: =INT(($B18/D19)+0.49) ->  | E22: =INT(($B18/E19)+0.49) -> 1 | F22: 1 | G22: 1 | H22: 1 | I22: 1 | J22: 1 | K22: 1 | L22: 1 | M22: 1 | N22: 1 | O22: 1 | P22: 1 | Q22: 1 | R22: 1 | S22: 1 | T22: 1 | U22: 1 | V22: 1
C23: dh test (pix) | D23: =($B18-D22*D19)*8 ->  | E23: =($B18-E22*E19)*8 -> 0 | F23: -0.380952381 | G23: -0.9230769231 | H23: 0 | I23: -0.2162162162 | J23: -0.5714285714 | K23: 0 | L23: -0.1509433962 | M23: -0.4137931034 | N23: 0 | O23: -0.115942029 | P23: -0.3243243243 | Q23: 0 | R23: -0.09411764706 | S23: -0.2666666667 | T23: 0 | U23: -0.07920792079 | V23: -0.1967213115
C24: dl test (pix) | D24: =D22*D15/D18 ->  | E24: =E22*E15/E18 -> 0 | F24: -6.095238095 | G24: 4.923076923 | H24: 0 | I24: -3.459459459 | J24: 3.047619048 | K24: 0 | L24: -2.41509434 | M24: 2.206896552 | N24: 0 | O24: -1.855072464 | P24: 1.72972973 | Q24: 0 | R24: -1.505882353 | S24: 1.422222222 | T24: 0 | U24: -1.267326733 | V24: 1.049180328
C26: lo | E26: =$B$1*2 -> 96 | F26: =$B$1*2 -> 96 | G26: =$B$1*2 -> 96 | H26: 96 | I26: 96 | J26: 96 | K26: 96 | L26: 96 | M26: 96 | N26: 96 | O26: 96 | P26: 96 | Q26: 96 | R26: 96 | S26: 96 | T26: 96 | U26: 96 | V26: 96 | W26: largeur de l'offset (de l'écran)
C27: do | E27: =(E31-1)/2+TRUNC(E19*E22,0)*E26 -> 383.5 | F27: 384 | G27: 383 | H27: 383.5 | I27: 384 | J27: 383 | K27: 383.5 | L27: 384 | M27: 383 | N27: 383.5 | O27: 384 | P27: 383 | Q27: 383.5 | R27: 384 | S27: 383 | T27: 383.5 | U27: 384 | V27: 383 | W27: le delta de l'offest (de l'éran) d'une anim à l'autre
C28: n_neg | E28: =-E18 -> -16 | F28: =-F18 -> -21 | G28: =-G18 -> -26 | H28: -32 | I28: -37 | J28: -42 | K28: -48 | L28: -53 | M28: -58 | N28: -64 | O28: -69 | P28: -74 | Q28: -80 | R28: -85 | S28: -90 | T28: -96 | U28: -101 | V28: -122 | W28: nombre d'étapes d'animation dans la colonne
C29: dym | E29: =TRUNC(MOD(E20*E22,8)) -> 0 | F29: =TRUNC(MOD(F20*F22,8)) -> 0 | G29: =TRUNC(MOD(G20*G22,8)) -> 0 | H29: 0 | I29: 0 | J29: 0 | K29: 0 | L29: 0 | M29: 0 | N29: 0 | O29: 0 | P29: 0 | Q29: 0 | R29: 0 | S29: 0 | T29: 0 | U29: 0 | V29: 0 | W29: le delta à chaque étape d'anim de (y modulo 8)
C30: dcym | E30: =(MOD(E20*E22,8)-E29)*E18 -> 0 | F30: 8 | G30: 24 | H30: 0 | I30: 8 | J30: 24 | K30: 0 | L30: 8 | M30: 24 | N30: 0 | O30: 8 | P30: 24 | Q30: 0 | R30: 8 | S30: 24 | T30: 0 | U30: 8 | V30: 24 | W30: le delta pour le calcul précis de (y modulo 8)
C31: sx | E31: =-SIGN(E24) -> 0 | F31: =-SIGN(F24) -> 1 | G31: =-SIGN(G24) -> -1 | H31: 0 | I31: 1 | J31: -1 | K31: 0 | L31: 1 | M31: -1 | N31: 0 | O31: 1 | P31: -1 | Q31: 0 | R31: 1 | S31: -1 | T31: 0 | U31: 1 | V31: -1 | W31: le signe de dx, savoir si on inc-déc/rémente
C32: dxm | E32: =TRUNC(ABS(E24))*E31-(E31-1)/2*4*ABS(E31) -> 0 | F32: 6 | G32: 0 | H32: 0 | I32: 3 | J32: 1 | K32: 0 | L32: 2 | M32: 2 | N32: 0 | O32: 1 | P32: 3 | Q32: 0 | R32: 1 | S32: 3 | T32: 0 | U32: 1 | V32: 3 | W32: le delta à chaque étage d'anim de x modulo 8)
C33: dcxm | E33: =(ABS(E24)-TRUNC(ABS(E24)))*E18 -> 0 | F33: =(ABS(F24)-TRUNC(ABS(F24)))*F18 -> 2 | G33: =(ABS(G24)-TRUNC(ABS(G24)))*G18 -> 24 | H33: 0 | I33: 17 | J33: 2 | K33: 0 | L33: 22 | M33: 12 | N33: 0 | O33: 59 | P33: 54 | Q33: 0 | R33: 43 | S33: 38 | T33: 0 | U33: 27 | V33: 6 | W33: le delta pour le calcul précis de (x modulo 8)
C34: inv | E34: =ROUND(65536/E18,0) -> 4096 | F34: =ROUND(65536/F18,0) -> 3121 | G34: =ROUND(65536/G18,0) -> 2521 | H34: 2048 | I34: 1771 | J34: 1560 | K34: 1365 | L34: 1237 | M34: 1130 | N34: 1024 | O34: 950 | P34: 886 | Q34: 819 | R34: 771 | S34: 728 | T34: 683 | U34: 649 | V34: 537 | W34: 65536/n

Sheet donkey kong - mario 1
A1: larg = | B1: 48
A2: ecr = | B2: 1024 | C2: nb col | E2: 3 | F2: 4 | G2: =F2+1 -> 5 | H2: 6 | I2: 7 | J2: 8 | K2: 9 | L2: 10 | M2: 11 | N2: 12 | O2: 13 | P2: 14 | Q2: 15 | R2: 16 | S2: 17 | T2: 18 | U2: 19 | V2: 23
A3: h | B3: =INT(B2/B1) -> 21 | C3: larg col | E3: =$B1/E2 -> 16 | F3: 12 | G3: 9.6 | H3: 8 | I3: 6.857142857 | J3: 6 | K3: 5.333333333 | L3: 4.8 | M3: 4.363636364 | N3: 4 | O3: 3.692307692 | P3: 3.428571429 | Q3: 3.2 | R3: 3 | S3: 2.823529412 | T3: 2.666666667 | U3: 2.526315789 | V3: 2.086956522
A4: reste | B4: =B2-B1*B3 -> 16 | C4: en nb de col | E4: =$B4/E3 -> 1 | F4: 1.333333333 | G4: 1.666666667 | H4: 2 | I4: 2.333333333 | J4: 2.666666667 | K4: 3 | L4: 3.333333333 | M4: 3.666666667 | N4: 4 | O4: 4.333333333 | P4: 4.666666667 | Q4: 5 | R4: 5.333333333 | S4: 5.666666667 | T4: 6 | U4: 6.333333333 | V4: 7.666666667
A5: manque | B5: =B1-B4 -> 32 | C5: en nb de col | E5: =$B5/E3 -> 2 | F5: 2.666666667 | G5: 3.333333333 | H5: 4 | I5: 4.666666667 | J5: 5.333333333 | K5: 6 | L5: 6.666666667 | M5: 7.333333333 | N5: 8 | O5: 8.666666667 | P5: 9.333333333 | Q5: 10 | R5: 10.66666667 | S5: 11.33333333 | T5: 12 | U5: 12.66666667 | V5: =$B5/V3 -> 15.33333333
C6: ent(col) reste | E6: =INT(E4+0.49) -> 1 | F6: 1 | G6: 2 | H6: 2 | I6: 2 | J6: 3 | K6: 3 | L6: 3 | M6: 4 | N6: 4 | O6: 4 | P6: 5 | Q6: 5 | R6: 5 | S6: 6 | T6: 6 | U6: 6 | V6: 8
C7: ent(col) manque | E7: 2 | F7: 3 | G7: 3 | H7: 4 | I7: 5 | J7: 5 | K7: 6 | L7: 7 | M7: 7 | N7: 8 | O7: 9 | P7: 9 | Q7: 10 | R7: 11 | S7: 11 | T7: 12 | U7: 13 | V7: 15
C8: reste ok? | E8: =ABS((E6-E4)/E4) -> 0 | F8: 0.25 | G8: 0.2 | H8: 0 | I8: 0.1428571429 | J8: 0.125 | K8: 0 | L8: 0.1 | M8: 0.09090909091 | N8: 0 | O8: 0.07692307692 | P8: 0.07142857143 | Q8: 0 | R8: 0.0625 | S8: 0.05882352941 | T8: 0 | U8: 0.05263157895 | V8: 0.04347826087
C9: manque ok? | E9: 0 | F9: 0.125 | G9: 0.1 | H9: 0 | I9: 0.07142857143 | J9: 0.0625 | K9: 0 | L9: 0.05 | M9: 0.04545454545 | N9: 0 | O9: 0.03846153846 | P9: 0.03571428571 | Q9: 0 | R9: 0.03125 | S9: 0.02941176471 | T9: 0 | U9: 0.02631578947 | V9: 0.02173913043
C10: tout ok? | E10: =E8+E9 -> 0 | F10: 0.375 | G10: 0.3 | H10: 0 | I10: 0.2142857143 | J10: 0.1875 | K10: 0 | L10: 0.15 | M10: 0.1363636364 | N10: 0 | O10: 0.1153846154 | P10: 0.1071428571 | Q10: 0 | R10: 0.09375 | S10: 0.08823529412 | T10: 0 | U10: 0.07894736842 | V10: 0.0652173913
C11: delta / 1 h (pix) | E11: =($B4-INT(E4+0.49)*E3)*8 -> 0 | F11: 32 | G11: -25.6 | H11: 0 | I11: 18.28571429 | J11: -16 | K11: 0 | L11: 12.8 | M11: -11.63636364 | N11: 0 | O11: 9.846153846 | P11: -9.142857143 | Q11: 0 | R11: 8 | S11: -7.529411765 | T11: 0 | U11: 6.736842105 | V11: =($B4-INT(V4+0.49)*V3)*8 -> -5.565217391
C12: h t col (ch) | E12: =$B3*E2+INT(E4+0.49) -> 64 | F12: 85 | G12: 107 | H12: 128 | I12: 149 | J12: 171 | K12: 192 | L12: 213 | M12: 235 | N12: 256 | O12: 277 | P12: 299 | Q12: 320 | R12: 341 | S12: 363 | T12: 384 | U12: 405 | V12: =$B3*V2+INT(V4+0.49) -> 491
C13: h t col (carré) | E13: =E12/E3 -> 4 | F13: 7.083333333 | G13: 11.14583333 | H13: 16 | I13: 21.72916667 | J13: 28.5 | K13: 36 | L13: 44.375 | M13: 53.85416667 | N13: 64 | O13: 75.02083333 | P13: 87.20833333 | Q13: 100 | R13: 113.6666667 | S13: 128.5625 | T13: 144 | U13: 160.3125 | V13: 235.2708333
C14: delta / h t (ch) | E14: =MOD(E12*$B1+$B2/2,$B2)-$B2/2 -> 0 | F14: -16 | G14: 16 | H14: 0 | I14: -16 | J14: 16 | K14: 0 | L14: -16 | M14: 16 | N14: 0 | O14: -16 | P14: 16 | Q14: 0 | R14: -16 | S14: 16 | T14: 0 | U14: -16 | V14: =MOD(V12*$B1+$B2/2,$B2)-$B2/2 -> 16
C15: delta / h t (pix) | E15: =E14*8 -> 0 | F15: -128 | G15: 128 | H15: 0 | I15: -128 | J15: 128 | K15: 0 | L15: -128 | M15: 128 | N15: 0 | O15: -128 | P15: 128 | Q15: 0 | R15: -128 | S15: 128 | T15: 0 | U15: -128 | V15: 128
C16: carré (pix) | E16: =E3*8 -> 128 | F16: 96 | G16: 76.8 | H16: 64 | I16: 54.85714286 | J16: 48 | K16: 42.66666667 | L16: 38.4 | M16: 34.90909091 | N16: 32 | O16: 29.53846154 | P16: 27.42857143 | Q16: 25.6 | R16: 24 | S16: 22.58823529 | T16: 21.33333333 | U16: 20.21052632 | V16: =V3*8 -> 16.69565217
C17: delta / carré (pix) | E17: =E15/E13 -> 0 | F17: -18.07058824 | G17: 11.48411215 | H17: 0 | I17: -5.890699904 | J17: 4.49122807 | K17: 0 | L17: -2.884507042 | M17: 2.376789168 | N17: 0 | O17: -1.706192724 | P17: 1.467749642 | Q17: 0 | R17: -1.126099707 | S17: 0.9956246962 | T17: 0 | U17: -0.7984405458 | V17: =V15/V13 -> 0.5440538387
A18: scroll h= | B18: 6 | C18: nb motif = | D18: =INT(D12/$B$18) -> 0 | E18: 11 | F18: 14 | G18: 17 | H18: 21 | I18: 24 | J18: 28 | K18: 32 | L18: 35 | M18: 39 | N18: 42 | O18: 46 | P18: 49 | Q18: 53 | R18: 56 | S18: 60 | T18: 64 | U18: 67 | V18: 81
C19: h motif (ch) | D19: =D12/D18 ->  | E19: =E12/E18 -> 5.818181818 | F19: 6.071428571 | G19: 6.294117647 | H19: 6.095238095 | I19: 6.208333333 | J19: 6.107142857 | K19: 6 | L19: 6.085714286 | M19: 6.025641026 | N19: 6.095238095 | O19: 6.02173913 | P19: 6.102040816 | Q19: 6.037735849 | R19: 6.089285714 | S19: 6.05 | T19: 6 | U19: 6.044776119 | V19: 6.061728395
C20: h motif (pix) | D20: =D19*8 ->  | E20: =E19*8 -> 46.54545455 | F20: 48.57142857 | G20: 50.35294118 | H20: 48.76190476 | I20: 49.66666667 | J20: 48.85714286 | K20: 48 | L20: 48.68571429 | M20: 48.20512821 | N20: 48.76190476 | O20: 48.17391304 | P20: 48.81632653 | Q20: 48.30188679 | R20: 48.71428571 | S20: 48.4 | T20: 48 | U20: 48.35820896 | V20: 48.49382716
C21: l motif (pix) | D21: =D3*8 -> 0 | E21: =E3*8 -> 128 | F21: 96 | G21: 76.8 | H21: 64 | I21: 54.85714286 | J21: 48 | K21: 42.66666667 | L21: 38.4 | M21: 34.90909091 | N21: 32 | O21: 29.53846154 | P21: 27.42857143 | Q21: 25.6 | R21: 24 | S21: 22.58823529 | T21: 21.33333333 | U21: 20.21052632 | V21: 16.69565217
C22: nb motif tenté | D22: =INT(($B18/D19)+0.49) ->  | E22: =INT(($B18/E19)+0.49) -> 1 | F22: 1 | G22: 1 | H22: 1 | I22: 1 | J22: 1 | K22: 1 | L22: 1 | M22: 1 | N22: 1 | O22: 1 | P22: 1 | Q22: 1 | R22: 1 | S22: 1 | T22: 1 | U22: 1 | V22: 1
C23: dh test (pix) | D23: =($B18-D22*D19)*8 ->  | E23: =($B18-E22*E19)*8 -> 1.454545455 | F23: -0.5714285714 | G23: -2.352941176 | H23: -0.7619047619 | I23: -1.666666667 | J23: -0.8571428571 | K23: 0 | L23: -0.6857142857 | M23: -0.2051282051 | N23: -0.7619047619 | O23: -0.1739130435 | P23: -0.8163265306 | Q23: -0.3018867925 | R23: -0.7142857143 | S23: -0.4 | T23: 0 | U23: -0.3582089552 | V23: -0.4938271605
C24: dl test (pix) | D24: =D22*D15/D18 ->  | E24: =E22*E15/E18 -> 0 | F24: -9.142857143 | G24: 7.529411765 | H24: 0 | I24: -5.333333333 | J24: 4.571428571 | K24: 0 | L24: -3.657142857 | M24: 3.282051282 | N24: 0 | O24: -2.782608696 | P24: 2.612244898 | Q24: 0 | R24: -2.285714286 | S24: 2.133333333 | T24: 0 | U24: -1.910447761 | V24: 1.580246914
C26: lo | E26: =$B$1*2 -> 96 | F26: =$B$1*2 -> 96 | G26: =$B$1*2 -> 96 | H26: 96 | I26: 96 | J26: 96 | K26: 96 | L26: 96 | M26: 96 | N26: 96 | O26: 96 | P26: 96 | Q26: 96 | R26: 96 | S26: 96 | T26: 96 | U26: 96 | V26: 96 | W26: largeur de l'offset (de l'écran)
C27: do | E27: =(E31-1)/2+TRUNC(E19*E22,0)*E26 -> 479.5 | F27: 576 | G27: 575 | H27: 575.5 | I27: 576 | J27: 575 | K27: 575.5 | L27: 576 | M27: 575 | N27: 575.5 | O27: 576 | P27: 575 | Q27: 575.5 | R27: 576 | S27: 575 | T27: 575.5 | U27: 576 | V27: 575 | W27: le delta de l'offest (de l'éran) d'une anim à l'autre
C28: n_neg | E28: =-E18 -> -11 | F28: =-F18 -> -14 | G28: =-G18 -> -17 | H28: -21 | I28: -24 | J28: -28 | K28: -32 | L28: -35 | M28: -39 | N28: -42 | O28: -46 | P28: -49 | Q28: -53 | R28: -56 | S28: -60 | T28: -64 | U28: -67 | V28: -81 | W28: nombre d'étapes d'animation dans la colonne
C29: dym | E29: =TRUNC(MOD(E20*E22,8)) -> 6 | F29: =TRUNC(MOD(F20*F22,8)) -> 0 | G29: =TRUNC(MOD(G20*G22,8)) -> 2 | H29: 0 | I29: 1 | J29: 0 | K29: 0 | L29: 0 | M29: 0 | N29: 0 | O29: 0 | P29: 0 | Q29: 0 | R29: 0 | S29: 0 | T29: 0 | U29: 0 | V29: 0 | W29: le delta à chaque étape d'anim de (y modulo 8)
C30: dcym | E30: =(MOD(E20*E22,8)-E29)*E18 -> 6 | F30: 8 | G30: 6 | H30: 16 | I30: 16 | J30: 24 | K30: 0 | L30: 24 | M30: 8 | N30: 32 | O30: 8 | P30: 40 | Q30: 16 | R30: 40 | S30: 24 | T30: 0 | U30: 24 | V30: 40 | W30: le delta pour le calcul précis de (y modulo 8)
C31: sx | E31: =-SIGN(E24) -> 0 | F31: =-SIGN(F24) -> 1 | G31: =-SIGN(G24) -> -1 | H31: 0 | I31: 1 | J31: -1 | K31: 0 | L31: 1 | M31: -1 | N31: 0 | O31: 1 | P31: -1 | Q31: 0 | R31: 1 | S31: -1 | T31: 0 | U31: 1 | V31: -1 | W31: le signe de dx, savoir si on inc-déc/rémente
C32: dxm | E32: =TRUNC(ABS(E24))*E31-(E31-1)/2*4*ABS(E31) -> 0 | F32: 9 | G32: -3 | H32: 0 | I32: 5 | J32: 0 | K32: 0 | L32: 3 | M32: 1 | N32: 0 | O32: 2 | P32: 2 | Q32: 0 | R32: 2 | S32: 2 | T32: 0 | U32: 1 | V32: 3 | W32: le delta à chaque étage d'anim de x modulo 8)
C33: dcxm | E33: =(ABS(E24)-TRUNC(ABS(E24)))*E18 -> 0 | F33: =(ABS(F24)-TRUNC(ABS(F24)))*F18 -> 2 | G33: =(ABS(G24)-TRUNC(ABS(G24)))*G18 -> 9 | H33: 0 | I33: 8 | J33: 16 | K33: 0 | L33: 23 | M33: 11 | N33: 0 | O33: 36 | P33: 30 | Q33: 0 | R33: 16 | S33: 8 | T33: 0 | U33: 61 | V33: 47 | W33: le delta pour le calcul précis de (x modulo 8)
C34: inv | E34: =ROUND(65536/E18,0) -> 5958 | F34: =ROUND(65536/F18,0) -> 4681 | G34: =ROUND(65536/G18,0) -> 3855 | H34: 3121 | I34: 2731 | J34: 2341 | K34: 2048 | L34: 1872 | M34: 1680 | N34: 1560 | O34: 1425 | P34: 1337 | Q34: 1237 | R34: 1170 | S34: 1092 | T34: 1024 | U34: 978 | V34: 809 | W34: 65536/n

Sheet donkey kong - mario 2
A1: larg = | B1: 48
A2: ecr = | B2: 1024 | C2: nb col | E2: 3 | F2: 4 | G2: =F2+1 -> 5 | H2: 6 | I2: 7 | J2: 8 | K2: 9 | L2: 10 | M2: 11 | N2: 12 | O2: 13 | P2: 14 | Q2: 15 | R2: 16 | S2: 17 | T2: 18 | U2: 19 | V2: 23
A3: h | B3: =INT(B2/B1) -> 21 | C3: larg col | E3: =$B1/E2 -> 16 | F3: 12 | G3: 9.6 | H3: 8 | I3: 6.857142857 | J3: 6 | K3: 5.333333333 | L3: 4.8 | M3: 4.363636364 | N3: 4 | O3: 3.692307692 | P3: 3.428571429 | Q3: 3.2 | R3: 3 | S3: 2.823529412 | T3: 2.666666667 | U3: 2.526315789 | V3: 2.086956522
A4: reste | B4: =B2-B1*B3 -> 16 | C4: en nb de col | E4: =$B4/E3 -> 1 | F4: 1.333333333 | G4: 1.666666667 | H4: 2 | I4: 2.333333333 | J4: 2.666666667 | K4: 3 | L4: 3.333333333 | M4: 3.666666667 | N4: 4 | O4: 4.333333333 | P4: 4.666666667 | Q4: 5 | R4: 5.333333333 | S4: 5.666666667 | T4: 6 | U4: 6.333333333 | V4: 7.666666667
A5: manque | B5: =B1-B4 -> 32 | C5: en nb de col | E5: =$B5/E3 -> 2 | F5: 2.666666667 | G5: 3.333333333 | H5: 4 | I5: 4.666666667 | J5: 5.333333333 | K5: 6 | L5: 6.666666667 | M5: 7.333333333 | N5: 8 | O5: 8.666666667 | P5: 9.333333333 | Q5: 10 | R5: 10.66666667 | S5: 11.33333333 | T5: 12 | U5: 12.66666667 | V5: =$B5/V3 -> 15.33333333
C6: ent(col) reste | E6: =INT(E4+0.49) -> 1 | F6: 1 | G6: 2 | H6: 2 | I6: 2 | J6: 3 | K6: 3 | L6: 3 | M6: 4 | N6: 4 | O6: 4 | P6: 5 | Q6: 5 | R6: 5 | S6: 6 | T6: 6 | U6: 6 | V6: 8
C7: ent(col) manque | E7: 2 | F7: 3 | G7: 3 | H7: 4 | I7: 5 | J7: 5 | K7: 6 | L7: 7 | M7: 7 | N7: 8 | O7: 9 | P7: 9 | Q7: 10 | R7: 11 | S7: 11 | T7: 12 | U7: 13 | V7: 15
C8: reste ok? | E8: =ABS((E6-E4)/E4) -> 0 | F8: 0.25 | G8: 0.2 | H8: 0 | I8: 0.1428571429 | J8: 0.125 | K8: 0 | L8: 0.1 | M8: 0.09090909091 | N8: 0 | O8: 0.07692307692 | P8: 0.07142857143 | Q8: 0 | R8: 0.0625 | S8: 0.05882352941 | T8: 0 | U8: 0.05263157895 | V8: 0.04347826087
C9: manque ok? | E9: 0 | F9: 0.125 | G9: 0.1 | H9: 0 | I9: 0.07142857143 | J9: 0.0625 | K9: 0 | L9: 0.05 | M9: 0.04545454545 | N9: 0 | O9: 0.03846153846 | P9: 0.03571428571 | Q9: 0 | R9: 0.03125 | S9: 0.02941176471 | T9: 0 | U9: 0.02631578947 | V9: 0.02173913043
C10: tout ok? | E10: =E8+E9 -> 0 | F10: 0.375 | G10: 0.3 | H10: 0 | I10: 0.2142857143 | J10: 0.1875 | K10: 0 | L10: 0.15 | M10: 0.1363636364 | N10: 0 | O10: 0.1153846154 | P10: 0.1071428571 | Q10: 0 | R10: 0.09375 | S10: 0.08823529412 | T10: 0 | U10: 0.07894736842 | V10: 0.0652173913
C11: delta / 1 h (pix) | E11: =($B4-INT(E4+0.49)*E3)*8 -> 0 | F11: 32 | G11: -25.6 | H11: 0 | I11: 18.28571429 | J11: -16 | K11: 0 | L11: 12.8 | M11: -11.63636364 | N11: 0 | O11: 9.846153846 | P11: -9.142857143 | Q11: 0 | R11: 8 | S11: -7.529411765 | T11: 0 | U11: 6.736842105 | V11: =($B4-INT(V4+0.49)*V3)*8 -> -5.565217391
C12: h t col (ch) | E12: =$B3*E2+INT(E4+0.49) -> 64 | F12: 85 | G12: 107 | H12: 128 | I12: 149 | J12: 171 | K12: 192 | L12: 213 | M12: 235 | N12: 256 | O12: 277 | P12: 299 | Q12: 320 | R12: 341 | S12: 363 | T12: 384 | U12: 405 | V12: =$B3*V2+INT(V4+0.49) -> 491
C13: h t col (carré) | E13: =E12/E3 -> 4 | F13: 7.083333333 | G13: 11.14583333 | H13: 16 | I13: 21.72916667 | J13: 28.5 | K13: 36 | L13: 44.375 | M13: 53.85416667 | N13: 64 | O13: 75.02083333 | P13: 87.20833333 | Q13: 100 | R13: 113.6666667 | S13: 128.5625 | T13: 144 | U13: 160.3125 | V13: 235.2708333
C14: delta / h t (ch) | E14: =MOD(E12*$B1+$B2/2,$B2)-$B2/2 -> 0 | F14: -16 | G14: 16 | H14: 0 | I14: -16 | J14: 16 | K14: 0 | L14: -16 | M14: 16 | N14: 0 | O14: -16 | P14: 16 | Q14: 0 | R14: -16 | S14: 16 | T14: 0 | U14: -16 | V14: =MOD(V12*$B1+$B2/2,$B2)-$B2/2 -> 16
C15: delta / h t (pix) | E15: =E14*8 -> 0 | F15: -128 | G15: 128 | H15: 0 | I15: -128 | J15: 128 | K15: 0 | L15: -128 | M15: 128 | N15: 0 | O15: -128 | P15: 128 | Q15: 0 | R15: -128 | S15: 128 | T15: 0 | U15: -128 | V15: 128
C16: carré (pix) | E16: =E3*8 -> 128 | F16: 96 | G16: 76.8 | H16: 64 | I16: 54.85714286 | J16: 48 | K16: 42.66666667 | L16: 38.4 | M16: 34.90909091 | N16: 32 | O16: 29.53846154 | P16: 27.42857143 | Q16: 25.6 | R16: 24 | S16: 22.58823529 | T16: 21.33333333 | U16: 20.21052632 | V16: =V3*8 -> 16.69565217
C17: delta / carré (pix) | E17: =E15/E13 -> 0 | F17: -18.07058824 | G17: 11.48411215 | H17: 0 | I17: -5.890699904 | J17: 4.49122807 | K17: 0 | L17: -2.884507042 | M17: 2.376789168 | N17: 0 | O17: -1.706192724 | P17: 1.467749642 | Q17: 0 | R17: -1.126099707 | S17: 0.9956246962 | T17: 0 | U17: -0.7984405458 | V17: =V15/V13 -> 0.5440538387
A18: scroll h= | B18: 6 | C18: nb motif = | D18: =INT(D12/$B$18) -> 0 | E18: 10 | F18: 14 | G18: 17 | H18: 21 | I18: 24 | J18: 28 | K18: 32 | L18: 35 | M18: 39 | N18: 42 | O18: 46 | P18: 49 | Q18: 53 | R18: 56 | S18: 60 | T18: 64 | U18: 67 | V18: 81
C19: h motif (ch) | D19: =D12/D18 ->  | E19: =E12/E18 -> 6.4 | F19: 6.071428571 | G19: 6.294117647 | H19: 6.095238095 | I19: 6.208333333 | J19: 6.107142857 | K19: 6 | L19: 6.085714286 | M19: 6.025641026 | N19: 6.095238095 | O19: 6.02173913 | P19: 6.102040816 | Q19: 6.037735849 | R19: 6.089285714 | S19: 6.05 | T19: 6 | U19: 6.044776119 | V19: 6.061728395
C20: h motif (pix) | D20: =D19*8 ->  | E20: =E19*8 -> 51.2 | F20: 48.57142857 | G20: 50.35294118 | H20: 48.76190476 | I20: 49.66666667 | J20: 48.85714286 | K20: 48 | L20: 48.68571429 | M20: 48.20512821 | N20: 48.76190476 | O20: 48.17391304 | P20: 48.81632653 | Q20: 48.30188679 | R20: 48.71428571 | S20: 48.4 | T20: 48 | U20: 48.35820896 | V20: 48.49382716
C21: l motif (pix) | D21: =D3*8 -> 0 | E21: =E3*8 -> 128 | F21: 96 | G21: 76.8 | H21: 64 | I21: 54.85714286 | J21: 48 | K21: 42.66666667 | L21: 38.4 | M21: 34.90909091 | N21: 32 | O21: 29.53846154 | P21: 27.42857143 | Q21: 25.6 | R21: 24 | S21: 22.58823529 | T21: 21.33333333 | U21: 20.21052632 | V21: 16.69565217
C22: nb motif tenté | D22: =INT(($B18/D19)+0.49) ->  | E22: =INT(($B18/E19)+0.49) -> 1 | F22: 1 | G22: 1 | H22: 1 | I22: 1 | J22: 1 | K22: 1 | L22: 1 | M22: 1 | N22: 1 | O22: 1 | P22: 1 | Q22: 1 | R22: 1 | S22: 1 | T22: 1 | U22: 1 | V22: 1
C23: dh test (pix) | D23: =($B18-D22*D19)*8 ->  | E23: =($B18-E22*E19)*8 -> -3.2 | F23: -0.5714285714 | G23: -2.352941176 | H23: -0.7619047619 | I23: -1.666666667 | J23: -0.8571428571 | K23: 0 | L23: -0.6857142857 | M23: -0.2051282051 | N23: -0.7619047619 | O23: -0.1739130435 | P23: -0.8163265306 | Q23: -0.3018867925 | R23: -0.7142857143 | S23: -0.4 | T23: 0 | U23: -0.3582089552 | V23: -0.4938271605
C24: dl test (pix) | D24: =D22*D15/D18 ->  | E24: =E22*E15/E18 -> 0 | F24: -9.142857143 | G24: 7.529411765 | H24: 0 | I24: -5.333333333 | J24: 4.571428571 | K24: 0 | L24: -3.657142857 | M24: 3.282051282 | N24: 0 | O24: -2.782608696 | P24: 2.612244898 | Q24: 0 | R24: -2.285714286 | S24: 2.133333333 | T24: 0 | U24: -1.910447761 | V24: 1.580246914
C26: lo | E26: =$B$1*2 -> 96 | F26: =$B$1*2 -> 96 | G26: =$B$1*2 -> 96 | H26: 96 | I26: 96 | J26: 96 | K26: 96 | L26: 96 | M26: 96 | N26: 96 | O26: 96 | P26: 96 | Q26: 96 | R26: 96 | S26: 96 | T26: 96 | U26: 96 | V26: 96 | W26: largeur de l'offset (de l'écran)
C27: do | E27: =(E31-1)/2+TRUNC(E19*E22,0)*E26 -> 575.5 | F27: 576 | G27: 575 | H27: 575.5 | I27: 576 | J27: 575 | K27: 575.5 | L27: 576 | M27: 575 | N27: 575.5 | O27: 576 | P27: 575 | Q27: 575.5 | R27: 576 | S27: 575 | T27: 575.5 | U27: 576 | V27: 575 | W27: le delta de l'offest (de l'éran) d'une anim à l'autre
C28: n_neg | E28: =-E18 -> -10 | F28: =-F18 -> -14 | G28: =-G18 -> -17 | H28: -21 | I28: -24 | J28: -28 | K28: -32 | L28: -35 | M28: -39 | N28: -42 | O28: -46 | P28: -49 | Q28: -53 | R28: -56 | S28: -60 | T28: -64 | U28: -67 | V28: -81 | W28: nombre d'étapes d'animation dans la colonne
C29: dym | E29: =TRUNC(MOD(E20*E22,8)) -> 3 | F29: =TRUNC(MOD(F20*F22,8)) -> 0 | G29: =TRUNC(MOD(G20*G22,8)) -> 2 | H29: 0 | I29: 1 | J29: 0 | K29: 0 | L29: 0 | M29: 0 | N29: 0 | O29: 0 | P29: 0 | Q29: 0 | R29: 0 | S29: 0 | T29: 0 | U29: 0 | V29: 0 | W29: le delta à chaque étape d'anim de (y modulo 8)
C30: dcym | E30: =(MOD(E20*E22,8)-E29)*E18 -> 2 | F30: 8 | G30: 6 | H30: 16 | I30: 16 | J30: 24 | K30: 0 | L30: 24 | M30: 8 | N30: 32 | O30: 8 | P30: 40 | Q30: 16 | R30: 40 | S30: 24 | T30: 0 | U30: 24 | V30: 40 | W30: le delta pour le calcul précis de (y modulo 8)
C31: sx | E31: =-SIGN(E24) -> 0 | F31: =-SIGN(F24) -> 1 | G31: =-SIGN(G24) -> -1 | H31: 0 | I31: 1 | J31: -1 | K31: 0 | L31: 1 | M31: -1 | N31: 0 | O31: 1 | P31: -1 | Q31: 0 | R31: 1 | S31: -1 | T31: 0 | U31: 1 | V31: -1 | W31: le signe de dx, savoir si on inc-déc/rémente
C32: dxm | E32: =TRUNC(ABS(E24))*E31-(E31-1)/2*4*ABS(E31) -> 0 | F32: 9 | G32: -3 | H32: 0 | I32: 5 | J32: 0 | K32: 0 | L32: 3 | M32: 1 | N32: 0 | O32: 2 | P32: 2 | Q32: 0 | R32: 2 | S32: 2 | T32: 0 | U32: 1 | V32: 3 | W32: le delta à chaque étage d'anim de x modulo 8)
C33: dcxm | E33: =(ABS(E24)-TRUNC(ABS(E24)))*E18 -> 0 | F33: =(ABS(F24)-TRUNC(ABS(F24)))*F18 -> 2 | G33: =(ABS(G24)-TRUNC(ABS(G24)))*G18 -> 9 | H33: 0 | I33: 8 | J33: 16 | K33: 0 | L33: 23 | M33: 11 | N33: 0 | O33: 36 | P33: 30 | Q33: 0 | R33: 16 | S33: 8 | T33: 0 | U33: 61 | V33: 47 | W33: le delta pour le calcul précis de (x modulo 8)
C34: inv | E34: =ROUND(65536/E18,0) -> 6554 | F34: =ROUND(65536/F18,0) -> 4681 | G34: =ROUND(65536/G18,0) -> 3855 | H34: 3121 | I34: 2731 | J34: 2341 | K34: 2048 | L34: 1872 | M34: 1680 | N34: 1560 | O34: 1425 | P34: 1337 | Q34: 1237 | R34: 1170 | S34: 1092 | T34: 1024 | U34: 978 | V34: 809 | W34: 65536/n
